Workbook

Sheet 18 lutego
E4: Załącznik nr 1
E5: do uchwały nr XXVI/ 128 /09
E6: Rady Miejskiej w Mordach
A7: Dochody | E7: z dnia 18 lutego 2009r.
A11: Dział | B11: Rozdział* | C11: § | D11: Źródło dochodów | E11: Plan na 2009 rok | F11: Zmniejszenia | G11: Zwiększenia | H11: Plan po zmianach
A12: 1 | B12: 2 | C12: 3 | D12: 4 | E12: 5 | F12: 6 | G12: 7 | H12: 8
A13: 010 | D13: Rolnictwo i łowiectwo | E13: =E14+E17 -> 14676 | F13: =F14+F17 -> 0 | G13: =G14+G17 -> 0 | H13: =E13-F13+G13 -> 14676
B14: 01010 | D14: Infrastruktura wodociągowa i sanitacyjna wsi | E14: =SUM(E15) -> 10000 | F14: =SUM(F15) -> 0 | G14: =SUM(G15) -> 0 | H14: =E14-F14+G14 -> 10000
C15: 6290 | D15: Środki na dofinansowanie własnych inwestycji gmin( związków gmin), powiatów(związków powiatów), samorządów województw, pozyskane z innych źródeł | E15: 10000 | H15: =E15-F15+G15 -> 10000
C16: 6300 | D16: Wpływy z tytułu pomocy finansowej udzielanej między jednostkami samorządu terytorialnego na dofinansowanie własnych zadań inwestycyjnych i zakupów inwestycyjnych | E16: 0 | H16: 0
B17: 01095 | D17: Pozostała działalność | E17: =SUM(E18:E19) -> 4676 | F17: =SUM(F18:F19) -> 0 | G17: =SUM(G18:G19) -> 0 | H17: 4676
C18: 2010 | D18: Dotacje celowe otrzymane z budżetu państwa na realizację zadań bieżących z zakresu administracji rządowej oraz innych zadań zleconych gminie(związkom gmin) ustawami | H18: =E18-F18+G18 -> 0
C19: 0750 | D19: Dochody z najmu i dzierżawy składników majątkowych Skarbu Państwa, jednostek samorządu terytorialnego lub innych jednostek zaliczanych do sektora finansów publicznych oraz umów o podobnym charakterze | E19: 4676 | H19: =E19-F19+G19 -> 4676
A20: 600 | D20: Transport i łączność | E20: =E21+E24 -> 440192 | F20: =F21+F24 -> 0 | G20: =G21+G24 -> 0 | H20: 440192
B21: 60014 | D21: Drogi publiczne powiatowe | E21: =SUM(E22:E23) -> 15192 | F21: =SUM(F22:F23) -> 0 | G21: =SUM(G22:G23) -> 0 | H21: 15192
C22: 2320 | D22: Dotacje celowe otrzymane z powiatu na zadania bieżące realizowane na podstawie porozumień(umów) między jst | E22: 15192 | H22: 15192
C23: 6300 | D23: Wpływy z tytułu pomocy finansowej udzielanej między jednostkami samorządu terytorialnego na dofinansowanie własnych zadań inwestycyjnych i zakupów inwestycyjnych | H23: 0
B24: 60016 | D24: Drogi publiczne gminne | E24: =SUM(E25:E26) -> 425000 | F24: =SUM(F25:F26) -> 0 | G24: =SUM(G25) -> 0 | H24: 425000
C25: 6260 | D25: Dotacje otrzymane z funduszy celowych na finansowanie lub dofinansowanie kosztów realizacjiinwestycji i zakupów inwestycyjnych jednostek sektora finansów publicznych | H25: 0
C26: 6330 | D26: Dotacje celowe otrzymane z budżetu państwa na realizację inwestycji i zakupów inwestycyjnych własnych gmin (związków gmin) | E26: 425000 | F26: 0 | H26: 425000
A27: 700 | D27: Gospodarka mieszkaniowa | E27: =E28 -> 288430 | F27: =F28 -> 0 | G27: =G28 -> 0 | H27: 288430
B28: 70005 | D28: Gospodarka gruntami i nieruchomościami | E28: =SUM(E29:E36) -> 288430 | F28: =SUM(F29:F36) -> 0 | G28: =SUM(G29:G36) -> 0 | H28: 288430
C29: 0470 | D29: Wpływy z opłat za zarząd, użytkowanie i użytkowanie wieczyste nieruchomości | E29: 8117 | H29: 8117
C30: 0690 | D30: Wpływy z różnych opłat | E30: 0 | H30: 0
C31: 0750 | D31: Dochody z najmu i dzierżawy składników majątkowych Skarbu Państwa, jednostek samorządu terytorialnego lub innych jednostek zaliczanych do sektora finansów publicznych oraz umów o podobnym charakterze | E31: 73800 | H31: 73800
C32: 0760 | D32: Wpływy z tytułu przekształcenia prawa użytkowania wieczystego przysługującego osobom fizycznym w prawo włsności | E32: 0 | H32: 0
C33: 0770 | D33: Wpłaty z tytułu odpłatnego nabycia prawa własności oraz prawa użytkowania wieczystego nieruchomości | E33: 200000 | H33: 200000
C34: 0830 | D34: Wpływy z usług | E34: 6013 | H34: 6013
C35: 0970 | D35: Wpływy z różnych dochodów | E35: 0 | H35: 0
C36: 0920 | D36: Pozostałe odsetki | E36: 500 | H36: 500
A37: 710 | D37: Działalność usługowa | E37: =E38 -> 0 | F37: =F38 -> 0 | G37: =G38 -> 0 | H37: 0
B38: 71035 | D38: Cmentarze | E38: =SUM(E39) -> 0 | F38: =SUM(F39) -> 0 | G38: =SUM(G39) -> 0 | H38: 0
C39: 2020 | D39: Dotacje celowe otrzymane z budżetu państwa na zadania bieżące realizowane przez gminę na podstawie porozumień z organizacjami administracji rządowej | H39: 0
A40: 750 | D40: Administracja publiczna | E40: =E41+E44 -> 79787 | F40: =F41+F44 -> 0 | G40: =G41+G44 -> 0 | H40: 79787
B41: 75011 | D41: Urzędy wojewódzkie | E41: =SUM(E42:E43) -> 73287 | F41: =SUM(F42:F43) -> 0 | G41: =SUM(G42:G43) -> 0 | H41: 73287
C42: 2010 | D42: Dotacje celowe otrzymane z budżetu państwa na realizację zadań bieżących z zakresu administracji rządowej oraz innych zadań zleconych gminie(związkom gmin) ustawami | E42: 71287 | H42: 71287
C43: 2360 | D43: Dochody jednostek samorządu terytorialnego związane z realizacją zadań z zakresu administracji rządowej oraz innych zadań zleconych ustawami | E43: 2000 | H43: 2000
B44: 75023 | D44: Urzędy gmin(miast i miast na prawach pow.) | E44: =SUM(E45:E47) -> 6500 | F44: =SUM(F45:F47) -> 0 | G44: =SUM(G45:G47) -> 0 | H44: 6500
C45: 0690 | D45: Wpływy z różnych opłat | E45: 3500 | H45: 3500
C46: 0830 | D46: Wpływy z usług | E46: 2000 | H46: 2000
C47: 0970 | D47: Wpływy z różnych dochodów | E47: 1000 | H47: 1000
A48: 751 | D48: Urzędy naczelnych organów władzypaństwowej, kontroli i ochrony prawa oraz sądownictwa | E48: =E49 -> 1026 | F48: =F49 -> 0 | G48: =G49 -> 0 | H48: 1026
B49: 75101 | D49: Urzędy naczelnych organów władzypaństwowej, kontroli i ochrony prawa | E49: =SUM(E50) -> 1026 | F49: =SUM(F50) -> 0 | G49: =SUM(G50) -> 0 | H49: 1026
C50: 2010 | D50: Dotacje celowe otrzymane z budżetu państwa na realizację zadań bieżących z zakresu administracji rządowej oraz innych zadań zleconych gminie(związkom gmin) ustawami | E50: 1026 | H50: 1026
A51: 754 | D51: Bezpieczeństwo publiczne i ochrona przeciwpożarowa | E51: =E53+E55 -> 400 | F51: =F53+F55 -> 0 | G51: =G52+G53 -> 0 | H51: 400
B52: 75412 | D52: Ochotnicze straże pożarne | E52: =E53 -> 0 | F52: =F53 -> 0 | G52: =G53+G54 -> 0 | H52: 0
C53: 2710 | D53: Dotacja celowa na pomoc finansową udzielaną między jednostkami samorządu terytorialnego na dofinansowanie własnych zadań bieżących | H53: 0
C54: 6300 | D54: Wpływy z tytułu pomocy finansowej udzielanej miedzy JST na dofinansowanie własnych zadań inwestycyjnych i zakupów inwestycyjnych | H54: 0
B55: 75414 | D55: Obrona cywilna | E55: =SUM(E56) -> 400 | F55: =SUM(F56) -> 0 | G55: =SUM(G56) -> 0 | H55: 400
C56: 2010 | D56: Dotacje celowe otrzymane z budżetu państwa na realizację zadań bieżących z zakresu administracji rządowej oraz innych zadań zleconych gminie(związkom gmin) ustawami | E56: 400 | H56: 400
A57: 756 | D57: Dochody od osób prawnych, od osób fizycznych i od in nych jrednostek nieposiadających osobowości prawnej oraz wydatki związane z ich poborem | E57: =E58+E60+E66+E75+E82 -> 2799568 | F57: =F58+F60+F66+F75+F82 -> 0 | G57: =G58+G60+G66+G75+G82 -> 0 | H57: 2799568
B58: 75601 | D58: Wpływy z podatku dochodowego od osób fizycznych | E58: =SUM(E59) -> 1500 | F58: =SUM(F59) -> 0 | G58: =SUM(G59) -> 0 | H58: 1500
C59: 0350 | D59: Podatek od działalnosci gospodarczej osób fizycznych opłacany w formie karty podatkowej | E59: 1500 | H59: 1500
B60: 75615 | D60: Wpływy z podatku rolnego, podatku leśnego,podatku od czynności cywilnoprawnych, podatku od spadków i darowizn oraz podatków i opłat lokalnych od osób prawnych i innych jenostek organizacyjnych | E60: =SUM(E61:E65) -> 506482 | F60: =SUM(F61:F65) -> 0 | G60: =SUM(G61:G65) -> 0 | H60: 506482
C61: 0310 | D61: Podatek od nieruchomości | E61: 492000 | H61: 492000
C62: 0320 | D62: Podatek rolny | E62: 770 | H62: 770
C63: 0330 | D63: Podatek leśny | E63: 10365 | H63: 10365
C64: 0340 | D64: Podatek od środków transportowych | E64: 2347 | H64: 2347
C65: 0910 | D65: Odsetki od nieterminowych wpłat z tytułu podatków i opłat | E65: 1000 | H65: 1000
B66: 75616 | D66: Wpływy z podatku rolnego, podatku leśnego, podatku od spadków i darowizn, podatku od czynności cywilnoprawnych oraz podatków i opłat lokalnych od osób fizycznych | E66: =SUM(E67:E74) -> 1036900 | F66: =SUM(F67:F74) -> 0 | G66: =SUM(G67:G74) -> 0 | H66: 1036900
C67: 0310 | D67: Podatek od nieruchomości | E67: 204500 | H67: 204500
C68: 0320 | D68: Podatek rolny | E68: 604000 | H68: 604000
C69: 0330 | D69: Podatek leśny | E69: 74000 | H69: 74000
C70: 0340 | D70: Podatek od środków transportowych | E70: 74400 | H70: 74400
C71: 0360 | D71: Podatek od spadków i darowizn | E71: 10000 | H71: 10000
C72: 0430 | D72: Wpływy z opłaty targowej | E72: 6500 | H72: 6500
C73: 0500 | D73: Podatek od czynności cywilnoprawnych | E73: 53500 | H73: 53500
C74: 0910 | D74: Odsetki od nieterminowych wpłat z tytułu podatków i opłat | E74: 10000 | H74: 10000
B75: 75618 | D75: Wpływy z innych opłat stanowiących dochody jednostek samorządu terytorialnego na podstawie ustaw | E75: =SUM(E76:E81) -> 65000 | F75: =SUM(F76:F81) -> 0 | G75: =SUM(G76:G81) -> 0 | H75: 65000
C76: 0400 | D76: Wpływy z opłaty produktowej | E76: 500 | H76: 500
C77: 0410 | D77: Wpływy z opłaty skarbowej | E77: 27000 | H77: 27000
C78: 0460 | D78: Wpływy z opłaty eksploatacyjnej | E78: 4000 | H78: 4000
C79: 0480 | D79: Wpływy z opłat zawydawanie zezwoleń na sprzedaż alkoholu | E79: 30500 | H79: 30500
C80: 0490 | D80: Wpływy z innych lokalnych opłat pobieranych przez jednostki samorządu terytorialnego na podstawie odrębnych ustaw | E80: 3000 | H80: 3000
C81: 0910 | D81: Odsetki od nieterminowych wpłat z tytułu podatków i opłat | H81: 0
B82: 75621 | D82: Udziały gmin w podatkach stanowiących dochód budżetu państwa | E82: =SUM(E83:E84) -> 1189686 | F82: =SUM(F83:F84) -> 0 | G82: =SUM(G83:G84) -> 0 | H82: 1189686
C83: 0010 | D83: Podatek dochodowy od osób fizycznych | E83: 1183186 | H83: 1183186
C84: 0020 | D84: Podatek dochodowy od osób prawnych | E84: 6500 | H84: 6500
A85: 758 | D85: Różne rozliczenia | E85: =E86+E88+E90+E92 -> 7648421 | F85: =F86+F88+F90+F92 -> 0 | G85: =G86+G88+G90+G92 -> 37318 | H85: 7685739
B86: 75801 | D86: Część oświatowa subwencji ogólnej dla jednostek samorządu terytorialnego | E86: =SUM(E87) -> 4364128 | F86: =SUM(F87) -> 0 | G86: =SUM(G87) -> 37318 | H86: 4401446
C87: 2920 | D87: Subwencje ogólne z budźetu państwa | E87: 4364128 | G87: 37318 | H87: 4401446
B88: 75807 | D88: Część wyrównawcza subwencji ogólnej dla gmin | E88: =SUM(E89) -> 3235728 | F88: =SUM(F89) -> 0 | G88: =SUM(G89) -> 0 | H88: 3235728
C89: 2920 | D89: Subwencje ogólne z budżetu państwa | E89: 3235728 | H89: 3235728
B90: 75814 | D90: Różne rozliczenia finansowe | E90: =SUM(E91) -> 10000 | F90: =SUM(F91) -> 0 | G90: =SUM(G91) -> 0 | H90: 10000
C91: 0920 | D91: Pozostałe odsetki | E91: 10000 | H91: 10000
B92: 75831 | D92: Część równoważąca subwencje ogólne dla gmin | E92: =SUM(E93) -> 38565 | F92: =SUM(F93) -> 0 | G92: =SUM(G93) -> 0 | H92: 38565
C93: 2920 | D93: Subwencje ogólne z budżetu państwa | E93: 38565 | H93: 38565
A94: 801 | D94: Oświata i wychowanie | E94: =E95+E98+E100 -> 38600 | F94: =F95+F98+F100 -> 0 | G94: =G95+G98+G100 -> 0 | H94: 38600
B95: 80101 | D95: Szkoły podstawowe | E95: =SUM(E96:E97) -> 1000 | F95: =SUM(F96:F97) -> 0 | G95: =SUM(G96:G97) -> 0 | H95: =E95-F95+G95 -> 1000
C96: 2030 | D96: Dotacje celowe otrzymane z budżetu państwa na realizację własnych zadań bieżących gmin (związków gmin) | H96: 0
C97: 0920 | D97: Pozostałe odsetki | E97: 1000 | H97: 1000
B98: 80104 | D98: Przedszkola | E98: =SUM(E99) -> 37600 | F98: =SUM(F99) -> 0 | G98: =SUM(G99) -> 0 | H98: 37600
C99: 0830 | D99: Wpływy z usług | E99: 37600 | H99: 37600
B100: 80195 | D100: Pozotała działalność | E100: =SUM(E101) -> 0 | F100: =SUM(F101) -> 0 | G100: =SUM(G101) -> 0 | H100: 0
C101: 2030 | D101: Dotacje celowe otrzymane z budżetu państwa na realizację własnych zadań bieżących gmin (związków gmin) | H101: 0
A102: 852 | D102: Pomoc społeczna | E102: =E103+E106+E108+E111+E115+E117 -> 2063900 | F102: =F103+F106+F108+F111+F115+F117 -> 0 | G102: =G103+G106+G108+G111+G115+G117 -> 173729 | H102: 2237629
B103: 85212 | D103: Świadczenia rodzinne, zaliczka alimentacyjn a oraz składki na ubezpieczenia emerytalne i rentowe z ubezpieczenia społecznego | E103: =SUM(E104:E105) -> 1740000 | F103: =SUM(F104:F105) -> 0 | G103: =SUM(G104:G105) -> 0 | H103: 1740000
C104: 6310 | D104: Dotacje celowe otrzymane z budżetu państwa na inwestycje i zakupy inwestycyjne z zakresu administracji rządowej oraz innych zadań zleconych gminom ustawami | H104: 5000
C105: 2010 | D105: Dotacje celowe otrzymane z budżetu państwa na realizację zadań bieżących z zakresu administracji rządowej oraz innych zadań zleconych gminie(związkom gmin) ustawami | E105: 1740000 | H105: 1740000
B106: 85213 | D106: Składki na ubezpieczenie zdrowotne opłacane za osoby pobierajace niektóre swiadczenia z pomocy społecznej oraz niektóre świadczenia rodzinne | E106: =SUM(E107) -> 7100 | F106: =SUM(F107) -> 0 | G106: =SUM(G107) -> 0 | H106: 7100
C107: 2010 | D107: Dotacje celowe otrzymane z budżetu państwa na realizację zadań bieżących z zakresu administracji rządowej oraz innych zadań zleconych gminie(związkom gmin) ustawami | E107: 7100 | H107: 7100
B108: 85214 | D108: Zasiłki i pomoc w naturze oraz składki na ubezpieczenia emerytalne i rentowe | E108: =SUM(E109:E110) -> 134700 | F108: =SUM(F109:F110) -> 0 | G108: =SUM(G109:G110) -> 0 | H108: 134700
C109: 2010 | D109: Dotacje celowe otrzymane z budżetu państwa na realizację zadań bieżących z zakresu administracji rządowej oraz innych zadań zleconych gminie(związkom gmin) ustawami | E109: 85000 | H109: 85000
C110: 2030 | D110: Dotacje celowe otrzymane z budżetu państwa na realizację własnych zadań bieżących gmin (związków gmin) | E110: 49700 | H110: 49700
B111: 85219 | D111: Ośrodki pomocy społecznej | E111: =SUM(E112:E114) -> 106500 | F111: =SUM(F112:F114) -> 0 | G111: =SUM(G112:G114) -> 0 | H111: 106500
C112: 2030 | D112: Dotacje celowe otrzymane z budżetu państwa na realizację własnych zadań bieżących gmin (związków gmin) | E112: 104000 | H112: 104000
C113: 0830 | D113: Wpływy z usług | E113: 1500 | H113: 1500
C114: 0920 | D114: Pozostale odsetki | E114: 1000 | H114: 1000
B115: 85228 | D115: Usługi opiekuńcze i specjalistyczne usługi opiekuńcze | E115: =SUM(E116) -> 15600 | F115: =SUM(F116) -> 0 | G115: =SUM(G116) -> 3150 | H115: 18750
C116: 2010 | D116: Dotacje celowe otrzymane z budżetu państwa na realizację zadań bieżących z zakresu administracji rządowej oraz innych zadań zleconych gminie(związkom gmin) ustawami | E116: 15600 | G116: 3150 | H116: 18750
B117: 85295 | D117: Pozostała działałność | E117: =SUM(E118) -> 60000 | F117: =SUM(F118) -> 0 | G117: =SUM(G118:G119) -> 170579 | H117: 230579
C118: 2030 | D118: Dotacje celowe otrzymane z budżetu państwa na realizację własnych zadań bieżących gmin (związków gmin) | E118: 60000 | H118: 60000
C119: 2023 | D119: Dotacje celowe otrzymane z budżetu państwa na zdania bieżące realizowane przez gminę na podstawie porozumień z organami administracji rządowej | G119: 170579 | H119: 170579
A120: 854 | D120: Edukacyjna opieka wychowawcza | E120: =SUM(E121) -> 0 | F120: 0 | G120: 0 | H120: 0
B121: 85415 | D121: Pomoc materialna dla uczniów | E121: 0 | F121: 0 | G121: 0 | H121: 0
C122: 2030 | D122: Dotacje celowe otrzymane z budżetu państwa na realizację własnych zadań bieżących gmin (związków gmin) | H122: 0
A123: 900 | D123: Gospodarka komunalna i ochrona środowiska | E123: =E124 -> 0 | F123: =F124 -> 0 | G123: =G124 -> 0 | H123: 0
B124: 90095 | D124: Pozostała działalność | E124: =SUM(E125) -> 0 | F124: =SUM(F125) -> 0 | G124: =SUM(G125) -> 0 | H124: 0
C125: 2440 | D125: Dotacje przekazane z funduszy celowych na realizację zadań bieżących dla jedostek sektora finansów publicznych | H125: 0
A127: Dochody ogółem | E127: =E13+E20+E27+E40+E48+E51+E57+E85+E94+E102+E37 -> 13375000 | F127: =F13+F20+F27+F40+F48+F51+F57+F85+F94+F102+F37 -> 0 | G127: =G13+G20+G27+G40+G48+G51+G57+G85+G94+G102+G37+G120 -> 211047 | H127: 13586047

Sheet marzec
E4: Załącznik nr 1
E5: do uchwały nr XXVII/ 136 /09
E6: Rady Miejskiej w Mordach
A7: Dochody | E7: z dnia 31 marca 2009r.
A11: Dział | B11: Rozdział* | C11: § | D11: Źródło dochodów | E11: Plan na 2009 rok | F11: Zmniejszenia | G11: Zwiększenia | H11: Plan po zmianach
A12: 1 | B12: 2 | C12: 3 | D12: 4 | E12: 5 | F12: 6 | G12: 7 | H12: 8
A13: 010 | D13: Rolnictwo i łowiectwo | E13: ='18 lutego'!H13 -> 14676 | F13: =F14+F17 -> 0 | G13: =G14+G17 -> 0 | H13: =E13-F13+G13 -> 14676
B14: 01010 | D14: Infrastruktura wodociągowa i sanitacyjna wsi | E14: ='18 lutego'!H14 -> 10000 | F14: =SUM(F15) -> 0 | G14: =SUM(G15) -> 0 | H14: =E14-F14+G14 -> 10000
C15: 6290 | D15: Środki na dofinansowanie własnych inwestycji gmin( związków gmin), powiatów(związków powiatów), samorządów województw, pozyskane z innych źródeł | E15: ='18 lutego'!H15 -> 10000 | H15: =E15-F15+G15 -> 10000
C16: 6300 | D16: Wpływy z tytułu pomocy finansowej udzielanej między jednostkami samorządu terytorialnego na dofinansowanie własnych zadań inwestycyjnych i zakupów inwestycyjnych | E16: ='18 lutego'!H16 -> 0 | H16: 0
B17: 01095 | D17: Pozostała działalność | E17: ='18 lutego'!H17 -> 4676 | F17: =SUM(F18:F19) -> 0 | G17: =SUM(G18:G19) -> 0 | H17: 4676
C18: 2010 | D18: Dotacje celowe otrzymane z budżetu państwa na realizację zadań bieżących z zakresu administracji rządowej oraz innych zadań zleconych gminie(związkom gmin) ustawami | E18: ='18 lutego'!H18 -> 0 | H18: =E18-F18+G18 -> 0
C19: 0750 | D19: Dochody z najmu i dzierżawy składników majątkowych Skarbu Państwa, jednostek samorządu terytorialnego lub innych jednostek zaliczanych do sektora finansów publicznych oraz umów o podobnym charakterze | E19: ='18 lutego'!H19 -> 4676 | H19: =E19-F19+G19 -> 4676
A20: 600 | D20: Transport i łączność | E20: ='18 lutego'!H20 -> 440192 | F20: =F21+F24 -> 0 | G20: =G21+G24 -> 0 | H20: 440192
B21: 60014 | D21: Drogi publiczne powiatowe | E21: ='18 lutego'!H21 -> 15192 | F21: =SUM(F22:F23) -> 0 | G21: =SUM(G22:G23) -> 0 | H21: 15192
C22: 2320 | D22: Dotacje celowe otrzymane z powiatu na zadania bieżące realizowane na podstawie porozumień(umów) między jst | E22: ='18 lutego'!H22 -> 15192 | H22: 15192
C23: 6300 | D23: Wpływy z tytułu pomocy finansowej udzielanej między jednostkami samorządu terytorialnego na dofinansowanie własnych zadań inwestycyjnych i zakupów inwestycyjnych | E23: ='18 lutego'!H23 -> 0 | H23: 0
B24: 60016 | D24: Drogi publiczne gminne | E24: ='18 lutego'!H24 -> 425000 | F24: =SUM(F25:F26) -> 0 | G24: =SUM(G25) -> 0 | H24: 425000
C25: 6260 | D25: Dotacje otrzymane z funduszy celowych na finansowanie lub dofinansowanie kosztów realizacjiinwestycji i zakupów inwestycyjnych jednostek sektora finansów publicznych | E25: ='18 lutego'!H25 -> 0 | H25: 0
C26: 6330 | D26: Dotacje celowe otrzymane z budżetu państwa na realizację inwestycji i zakupów inwestycyjnych własnych gmin (związków gmin) | E26: ='18 lutego'!H26 -> 425000 | F26: 0 | H26: 425000
A27: 700 | D27: Gospodarka mieszkaniowa | E27: ='18 lutego'!H27 -> 288430 | F27: =F28 -> 0 | G27: =G28 -> 0 | H27: 288430
B28: 70005 | D28: Gospodarka gruntami i nieruchomościami | E28: ='18 lutego'!H28 -> 288430 | F28: =SUM(F29:F36) -> 0 | G28: =SUM(G29:G36) -> 0 | H28: 288430
C29: 0470 | D29: Wpływy z opłat za zarząd, użytkowanie i użytkowanie wieczyste nieruchomości | E29: ='18 lutego'!H29 -> 8117 | H29: 8117
C30: 0690 | D30: Wpływy z różnych opłat | E30: ='18 lutego'!H30 -> 0 | H30: 0
C31: 0750 | D31: Dochody z najmu i dzierżawy składników majątkowych Skarbu Państwa, jednostek samorządu terytorialnego lub innych jednostek zaliczanych do sektora finansów publicznych oraz umów o podobnym charakterze | E31: ='18 lutego'!H31 -> 73800 | H31: 73800
C32: 0760 | D32: Wpływy z tytułu przekształcenia prawa użytkowania wieczystego przysługującego osobom fizycznym w prawo włsności | E32: ='18 lutego'!H32 -> 0 | H32: 0
C33: 0770 | D33: Wpłaty z tytułu odpłatnego nabycia prawa własności oraz prawa użytkowania wieczystego nieruchomości | E33: ='18 lutego'!H33 -> 200000 | H33: 200000
C34: 0830 | D34: Wpływy z usług | E34: ='18 lutego'!H34 -> 6013 | H34: 6013
C35: 0970 | D35: Wpływy z różnych dochodów | E35: ='18 lutego'!H35 -> 0 | H35: 0
C36: 0920 | D36: Pozostałe odsetki | E36: ='18 lutego'!H36 -> 500 | H36: 500
A37: 710 | D37: Działalność usługowa | E37: ='18 lutego'!H37 -> 0 | F37: =F38 -> 0 | G37: =G38 -> 0 | H37: 0
B38: 71035 | D38: Cmentarze | E38: ='18 lutego'!H38 -> 0 | F38: =SUM(F39) -> 0 | G38: =SUM(G39) -> 0 | H38: 0
C39: 2020 | D39: Dotacje celowe otrzymane z budżetu państwa na zadania bieżące realizowane przez gminę na podstawie porozumień z organizacjami administracji rządowej | E39: ='18 lutego'!H39 -> 0 | H39: 0
A40: 750 | D40: Administracja publiczna | E40: ='18 lutego'!H40 -> 79787 | F40: =F41+F44 -> 0 | G40: =G41+G44 -> 0 | H40: 79787
B41: 75011 | D41: Urzędy wojewódzkie | E41: ='18 lutego'!H41 -> 73287 | F41: =SUM(F42:F43) -> 0 | G41: =SUM(G42:G43) -> 0 | H41: 73287
C42: 2010 | D42: Dotacje celowe otrzymane z budżetu państwa na realizację zadań bieżących z zakresu administracji rządowej oraz innych zadań zleconych gminie(związkom gmin) ustawami | E42: ='18 lutego'!H42 -> 71287 | H42: 71287
C43: 2360 | D43: Dochody jednostek samorządu terytorialnego związane z realizacją zadań z zakresu administracji rządowej oraz innych zadań zleconych ustawami | E43: ='18 lutego'!H43 -> 2000 | H43: 2000
B44: 75023 | D44: Urzędy gmin(miast i miast na prawach pow.) | E44: ='18 lutego'!H44 -> 6500 | F44: =SUM(F45:F47) -> 0 | G44: =SUM(G45:G47) -> 0 | H44: 6500
C45: 0690 | D45: Wpływy z różnych opłat | E45: ='18 lutego'!H45 -> 3500 | H45: 3500
C46: 0830 | D46: Wpływy z usług | E46: ='18 lutego'!H46 -> 2000 | H46: 2000
C47: 0970 | D47: Wpływy z różnych dochodów | E47: ='18 lutego'!H47 -> 1000 | H47: 1000
A48: 751 | D48: Urzędy naczelnych organów władzypaństwowej, kontroli i ochrony prawa oraz sądownictwa | E48: ='18 lutego'!H48 -> 1026 | F48: =F49+F51 -> 0 | G48: =G49+G51 -> 0 | H48: =H49+H51 -> 1026
B49: 75101 | D49: Urzędy naczelnych organów władzypaństwowej, kontroli i ochrony prawa | E49: ='18 lutego'!H49 -> 1026 | F49: =SUM(F50) -> 0 | G49: =SUM(G50) -> 0 | H49: 1026
C50: 2010 | D50: Dotacje celowe otrzymane z budżetu państwa na realizację zadań bieżących z zakresu administracji rządowej oraz innych zadań zleconych gminie(związkom gmin) ustawami | E50: ='18 lutego'!H50 -> 1026 | H50: 1026
B51: 75113 | D51: Wybory do Parlamentu Europejskiego | E51: =E52 -> 0 | F51: =F52 -> 0 | G51: =G52 -> 0 | H51: 0
C52: 2010 | D52: Dotacje celowe otrzymane z budżetu państwa na realizację zadań bieżących z zakresu administracji rządowej oraz innych zadań zleconych gminie(związkom gmin) ustawami | E52: 0 | H52: 0
A53: 754 | D53: Bezpieczeństwo publiczne i ochrona przeciwpożarowa | E53: ='18 lutego'!H51 -> 400 | F53: =F55+F57 -> 0 | G53: =G54+G55 -> 0 | H53: 400
B54: 75412 | D54: Ochotnicze straże pożarne | E54: ='18 lutego'!H52 -> 0 | F54: =F55 -> 0 | G54: =G55+G56 -> 0 | H54: 0
C55: 2710 | D55: Dotacja celowa na pomoc finansową udzielaną między jednostkami samorządu terytorialnego na dofinansowanie własnych zadań bieżących | E55: ='18 lutego'!H53 -> 0 | H55: 0
C56: 6300 | D56: Wpływy z tytułu pomocy finansowej udzielanej miedzy JST na dofinansowanie własnych zadań inwestycyjnych i zakupów inwestycyjnych | E56: ='18 lutego'!H54 -> 0 | H56: 0
B57: 75414 | D57: Obrona cywilna | E57: ='18 lutego'!H55 -> 400 | F57: =SUM(F58) -> 0 | G57: =SUM(G58) -> 0 | H57: 400
C58: 2010 | D58: Dotacje celowe otrzymane z budżetu państwa na realizację zadań bieżących z zakresu administracji rządowej oraz innych zadań zleconych gminie(związkom gmin) ustawami | E58: ='18 lutego'!H56 -> 400 | H58: 400
A59: 756 | D59: Dochody od osób prawnych, od osób fizycznych i od in nych jrednostek nieposiadających osobowości prawnej oraz wydatki związane z ich poborem | E59: ='18 lutego'!H57 -> 2799568 | F59: =F60+F62+F68+F77+F84 -> 0 | G59: =G60+G62+G68+G77+G84 -> 0 | H59: 2799568
B60: 75601 | D60: Wpływy z podatku dochodowego od osób fizycznych | E60: ='18 lutego'!H58 -> 1500 | F60: =SUM(F61) -> 0 | G60: =SUM(G61) -> 0 | H60: 1500
C61: 0350 | D61: Podatek od działalnosci gospodarczej osób fizycznych opłacany w formie karty podatkowej | E61: ='18 lutego'!H59 -> 1500 | H61: 1500
B62: 75615 | D62: Wpływy z podatku rolnego, podatku leśnego,podatku od czynności cywilnoprawnych, podatku od spadków i darowizn oraz podatków i opłat lokalnych od osób prawnych i innych jenostek organizacyjnych | E62: ='18 lutego'!H60 -> 506482 | F62: =SUM(F63:F67) -> 0 | G62: =SUM(G63:G67) -> 0 | H62: 506482
C63: 0310 | D63: Podatek od nieruchomości | E63: ='18 lutego'!H61 -> 492000 | H63: 492000
C64: 0320 | D64: Podatek rolny | E64: ='18 lutego'!H62 -> 770 | H64: 770
C65: 0330 | D65: Podatek leśny | E65: ='18 lutego'!H63 -> 10365 | H65: 10365
C66: 0340 | D66: Podatek od środków transportowych | E66: ='18 lutego'!H64 -> 2347 | H66: 2347
C67: 0910 | D67: Odsetki od nieterminowych wpłat z tytułu podatków i opłat | E67: ='18 lutego'!H65 -> 1000 | H67: 1000
B68: 75616 | D68: Wpływy z podatku rolnego, podatku leśnego, podatku od spadków i darowizn, podatku od czynności cywilnoprawnych oraz podatków i opłat lokalnych od osób fizycznych | E68: ='18 lutego'!H66 -> 1036900 | F68: =SUM(F69:F76) -> 0 | G68: =SUM(G69:G76) -> 0 | H68: 1036900
C69: 0310 | D69: Podatek od nieruchomości | E69: ='18 lutego'!H67 -> 204500 | H69: 204500
C70: 0320 | D70: Podatek rolny | E70: ='18 lutego'!H68 -> 604000 | H70: 604000
C71: 0330 | D71: Podatek leśny | E71: ='18 lutego'!H69 -> 74000 | H71: 74000
C72: 0340 | D72: Podatek od środków transportowych | E72: ='18 lutego'!H70 -> 74400 | H72: 74400
C73: 0360 | D73: Podatek od spadków i darowizn | E73: ='18 lutego'!H71 -> 10000 | H73: 10000
C74: 0430 | D74: Wpływy z opłaty targowej | E74: ='18 lutego'!H72 -> 6500 | H74: 6500
C75: 0500 | D75: Podatek od czynności cywilnoprawnych | E75: ='18 lutego'!H73 -> 53500 | H75: 53500
C76: 0910 | D76: Odsetki od nieterminowych wpłat z tytułu podatków i opłat | E76: ='18 lutego'!H74 -> 10000 | H76: 10000
B77: 75618 | D77: Wpływy z innych opłat stanowiących dochody jednostek samorządu terytorialnego na podstawie ustaw | E77: ='18 lutego'!H75 -> 65000 | F77: =SUM(F78:F83) -> 0 | G77: =SUM(G78:G83) -> 0 | H77: 65000
C78: 0400 | D78: Wpływy z opłaty produktowej | E78: ='18 lutego'!H76 -> 500 | H78: 500
C79: 0410 | D79: Wpływy z opłaty skarbowej | E79: ='18 lutego'!H77 -> 27000 | H79: 27000
C80: 0460 | D80: Wpływy z opłaty eksploatacyjnej | E80: ='18 lutego'!H78 -> 4000 | H80: 4000
C81: 0480 | D81: Wpływy z opłat zawydawanie zezwoleń na sprzedaż alkoholu | E81: ='18 lutego'!H79 -> 30500 | H81: 30500
C82: 0490 | D82: Wpływy z innych lokalnych opłat pobieranych przez jednostki samorządu terytorialnego na podstawie odrębnych ustaw | E82: ='18 lutego'!H80 -> 3000 | H82: 3000
C83: 0910 | D83: Odsetki od nieterminowych wpłat z tytułu podatków i opłat | E83: ='18 lutego'!H81 -> 0 | H83: 0
B84: 75621 | D84: Udziały gmin w podatkach stanowiących dochód budżetu państwa | E84: ='18 lutego'!H82 -> 1189686 | F84: =SUM(F85:F86) -> 0 | G84: =SUM(G85:G86) -> 0 | H84: 1189686
C85: 0010 | D85: Podatek dochodowy od osób fizycznych | E85: ='18 lutego'!H83 -> 1183186 | H85: 1183186
C86: 0020 | D86: Podatek dochodowy od osób prawnych | E86: ='18 lutego'!H84 -> 6500 | H86: 6500
A87: 758 | D87: Różne rozliczenia | E87: ='18 lutego'!H85 -> 7685739 | F87: =F88+F90+F92+F94 -> 0 | G87: =G88+G90+G92+G94 -> 0 | H87: 7685739
B88: 75801 | D88: Część oświatowa subwencji ogólnej dla jednostek samorządu terytorialnego | E88: ='18 lutego'!H86 -> 4401446 | F88: =SUM(F89) -> 0 | G88: =SUM(G89) -> 0 | H88: 4401446
C89: 2920 | D89: Subwencje ogólne z budźetu państwa | E89: ='18 lutego'!H87 -> 4401446 | H89: 4401446
B90: 75807 | D90: Część wyrównawcza subwencji ogólnej dla gmin | E90: ='18 lutego'!H88 -> 3235728 | F90: =SUM(F91) -> 0 | G90: =SUM(G91) -> 0 | H90: 3235728
C91: 2920 | D91: Subwencje ogólne z budżetu państwa | E91: ='18 lutego'!H89 -> 3235728 | H91: 3235728
B92: 75814 | D92: Różne rozliczenia finansowe | E92: ='18 lutego'!H90 -> 10000 | F92: =SUM(F93) -> 0 | G92: =SUM(G93) -> 0 | H92: 10000
C93: 0920 | D93: Pozostałe odsetki | E93: ='18 lutego'!H91 -> 10000 | H93: 10000
B94: 75831 | D94: Część równoważąca subwencje ogólne dla gmin | E94: ='18 lutego'!H92 -> 38565 | F94: =SUM(F95) -> 0 | G94: =SUM(G95) -> 0 | H94: 38565
C95: 2920 | D95: Subwencje ogólne z budżetu państwa | E95: ='18 lutego'!H93 -> 38565 | H95: 38565
A96: 801 | D96: Oświata i wychowanie | E96: ='18 lutego'!H94 -> 38600 | F96: =F97+F100+F102 -> 0 | G96: =G97+G100+G102 -> 0 | H96: 38600
B97: 80101 | D97: Szkoły podstawowe | E97: ='18 lutego'!H95 -> 1000 | F97: =SUM(F98:F99) -> 0 | G97: =SUM(G98:G99) -> 0 | H97: =E97-F97+G97 -> 1000
C98: 2030 | D98: Dotacje celowe otrzymane z budżetu państwa na realizację własnych zadań bieżących gmin (związków gmin) | E98: ='18 lutego'!H96 -> 0 | H98: 0
C99: 0920 | D99: Pozostałe odsetki | E99: ='18 lutego'!H97 -> 1000 | H99: 1000
B100: 80104 | D100: Przedszkola | E100: ='18 lutego'!H98 -> 37600 | F100: =SUM(F101) -> 0 | G100: =SUM(G101) -> 0 | H100: 37600
C101: 0830 | D101: Wpływy z usług | E101: ='18 lutego'!H99 -> 37600 | H101: 37600
B102: 80195 | D102: Pozotała działalność | E102: ='18 lutego'!H100 -> 0 | F102: =SUM(F103) -> 0 | G102: =SUM(G103) -> 0 | H102: 0
C103: 2030 | D103: Dotacje celowe otrzymane z budżetu państwa na realizację własnych zadań bieżących gmin (związków gmin) | E103: ='18 lutego'!H101 -> 0 | H103: 0
A104: 852 | D104: Pomoc społeczna | E104: ='18 lutego'!H102 -> 2237629 | F104: =F105+F108+F110+F113+F117+F119 -> 0 | G104: =G105+G108+G110+G113+G117+G119 -> 0 | H104: 2237629
B105: 85212 | D105: Świadczenia rodzinne, zaliczka alimentacyjn a oraz składki na ubezpieczenia emerytalne i rentowe z ubezpieczenia społecznego | E105: ='18 lutego'!H103 -> 1740000 | F105: =SUM(F106:F107) -> 0 | G105: =SUM(G106:G107) -> 0 | H105: 1740000
C106: 6310 | D106: Dotacje celowe otrzymane z budżetu państwa na inwestycje i zakupy inwestycyjne z zakresu administracji rządowej oraz innych zadań zleconych gminom ustawami | E106: ='18 lutego'!H104 -> 5000 | H106: 5000
C107: 2010 | D107: Dotacje celowe otrzymane z budżetu państwa na realizację zadań bieżących z zakresu administracji rządowej oraz innych zadań zleconych gminie(związkom gmin) ustawami | E107: ='18 lutego'!H105 -> 1740000 | H107: 1740000
B108: 85213 | D108: Składki na ubezpieczenie zdrowotne opłacane za osoby pobierajace niektóre swiadczenia z pomocy społecznej oraz niektóre świadczenia rodzinne | E108: ='18 lutego'!H106 -> 7100 | F108: =SUM(F109) -> 0 | G108: =SUM(G109) -> 0 | H108: 7100
C109: 2010 | D109: Dotacje celowe otrzymane z budżetu państwa na realizację zadań bieżących z zakresu administracji rządowej oraz innych zadań zleconych gminie(związkom gmin) ustawami | E109: ='18 lutego'!H107 -> 7100 | H109: 7100
B110: 85214 | D110: Zasiłki i pomoc w naturze oraz składki na ubezpieczenia emerytalne i rentowe | E110: ='18 lutego'!H108 -> 134700 | F110: =SUM(F111:F112) -> 0 | G110: =SUM(G111:G112) -> 0 | H110: 134700
C111: 2010 | D111: Dotacje celowe otrzymane z budżetu państwa na realizację zadań bieżących z zakresu administracji rządowej oraz innych zadań zleconych gminie(związkom gmin) ustawami | E111: ='18 lutego'!H109 -> 85000 | H111: 85000
C112: 2030 | D112: Dotacje celowe otrzymane z budżetu państwa na realizację własnych zadań bieżących gmin (związków gmin) | E112: ='18 lutego'!H110 -> 49700 | H112: 49700
B113: 85219 | D113: Ośrodki pomocy społecznej | E113: ='18 lutego'!H111 -> 106500 | F113: =SUM(F114:F116) -> 0 | G113: =SUM(G114:G116) -> 0 | H113: 106500
C114: 2030 | D114: Dotacje celowe otrzymane z budżetu państwa na realizację własnych zadań bieżących gmin (związków gmin) | E114: ='18 lutego'!H112 -> 104000 | H114: 104000
C115: 0830 | D115: Wpływy z usług | E115: ='18 lutego'!H113 -> 1500 | H115: 1500
C116: 0920 | D116: Pozostale odsetki | E116: ='18 lutego'!H114 -> 1000 | H116: 1000
B117: 85228 | D117: Usługi opiekuńcze i specjalistyczne usługi opiekuńcze | E117: ='18 lutego'!H115 -> 18750 | F117: =SUM(F118) -> 0 | G117: =SUM(G118) -> 0 | H117: 18750
C118: 2010 | D118: Dotacje celowe otrzymane z budżetu państwa na realizację zadań bieżących z zakresu administracji rządowej oraz innych zadań zleconych gminie(związkom gmin) ustawami | E118: ='18 lutego'!H116 -> 18750 | H118: 18750
B119: 85295 | D119: Pozostała działałność | E119: ='18 lutego'!H117 -> 230579 | F119: =SUM(F120) -> 0 | G119: =SUM(G120:G121) -> 0 | H119: 230579
C120: 2030 | D120: Dotacje celowe otrzymane z budżetu państwa na realizację własnych zadań bieżących gmin (związków gmin) | E120: ='18 lutego'!H118 -> 60000 | H120: 60000
C121: 2023 | D121: Dotacje celowe otrzymane z budżetu państwa na zdania bieżące realizowane przez gminę na podstawie porozumień z organami administracji rządowej | E121: ='18 lutego'!H119 -> 170579 | H121: 170579
A122: 854 | D122: Edukacyjna opieka wychowawcza | E122: ='18 lutego'!H120 -> 0 | F122: =SUM(F123) -> 0 | G122: =SUM(G123) -> 65304 | H122: 65304
B123: 85415 | D123: Pomoc materialna dla uczniów | E123: ='18 lutego'!H121 -> 0 | F123: =SUM(F124) -> 0 | G123: =SUM(G124) -> 65304 | H123: 65304
C124: 2030 | D124: Dotacje celowe otrzymane z budżetu państwa na realizację własnych zadań bieżących gmin (związków gmin) | E124: ='18 lutego'!H122 -> 0 | G124: 65304 | H124: 65304
A125: 900 | D125: Gospodarka komunalna i ochrona środowiska | E125: ='18 lutego'!H123 -> 0 | F125: =F126 -> 0 | G125: =G126 -> 0 | H125: 0
B126: 90095 | D126: Pozostała działalność | E126: ='18 lutego'!H124 -> 0 | F126: =SUM(F127) -> 0 | G126: =SUM(G127) -> 0 | H126: 0
C127: 2440 | D127: Dotacje przekazane z funduszy celowych na realizację zadań bieżących dla jedostek sektora finansów publicznych | E127: ='18 lutego'!H125 -> 0 | H127: 0
A129: Dochody ogółem | E129: ='18 lutego'!H127 -> 13586047 | F129: =F13+F20+F27+F40+F48+F53+F59+F87+F96+F104+F37 -> 0 | G129: =G13+G20+G27+G40+G48+G53+G59+G87+G96+G104+G37+G122 -> 65304 | H129: 13651351

Sheet kwiecień
E4: Załącznik nr 1
E5: do zarządzenia nr 9 /09
E6: Burmistrza Miasta i Gminy Mordy
A7: Dochody | E7: z dnia 29 kwietnia 2009r.
A11: Dział | B11: Rozdział* | C11: § | D11: Źródło dochodów | E11: Plan na 2009 rok | F11: Zmniejszenia | G11: Zwiększenia | H11: Plan po zmianach
A12: 1 | B12: 2 | C12: 3 | D12: 4 | E12: 5 | F12: 6 | G12: 7 | H12: 8
A13: 010 | D13: Rolnictwo i łowiectwo | E13: =marzec!H13 -> 14676 | F13: =F14+F17 -> 0 | G13: =G14+G17 -> 0 | H13: =E13-F13+G13 -> 14676
B14: 01010 | D14: Infrastruktura wodociągowa i sanitacyjna wsi | E14: =marzec!H14 -> 10000 | F14: =SUM(F15) -> 0 | G14: =SUM(G15) -> 0 | H14: =E14-F14+G14 -> 10000
C15: 6290 | D15: Środki na dofinansowanie własnych inwestycji gmin( związków gmin), powiatów(związków powiatów), samorządów województw, pozyskane z innych źródeł | E15: =marzec!H15 -> 10000 | H15: =E15-F15+G15 -> 10000
C16: 6300 | D16: Wpływy z tytułu pomocy finansowej udzielanej między jednostkami samorządu terytorialnego na dofinansowanie własnych zadań inwestycyjnych i zakupów inwestycyjnych | E16: =marzec!H16 -> 0 | H16: 0
B17: 01095 | D17: Pozostała działalność | E17: =marzec!H17 -> 4676 | F17: =SUM(F18:F19) -> 0 | G17: =SUM(G18:G19) -> 0 | H17: 4676
C18: 2010 | D18: Dotacje celowe otrzymane z budżetu państwa na realizację zadań bieżących z zakresu administracji rządowej oraz innych zadań zleconych gminie(związkom gmin) ustawami | E18: =marzec!H18 -> 0 | H18: =E18-F18+G18 -> 0
C19: 0750 | D19: Dochody z najmu i dzierżawy składników majątkowych Skarbu Państwa, jednostek samorządu terytorialnego lub innych jednostek zaliczanych do sektora finansów publicznych oraz umów o podobnym charakterze | E19: =marzec!H19 -> 4676 | H19: =E19-F19+G19 -> 4676
A20: 600 | D20: Transport i łączność | E20: =marzec!H20 -> 440192 | F20: =F21+F24 -> 0 | G20: =G21+G24 -> 0 | H20: 440192
B21: 60014 | D21: Drogi publiczne powiatowe | E21: =marzec!H21 -> 15192 | F21: =SUM(F22:F23) -> 0 | G21: =SUM(G22:G23) -> 0 | H21: 15192
C22: 2320 | D22: Dotacje celowe otrzymane z powiatu na zadania bieżące realizowane na podstawie porozumień(umów) między jst | E22: =marzec!H22 -> 15192 | H22: 15192
C23: 6300 | D23: Wpływy z tytułu pomocy finansowej udzielanej między jednostkami samorządu terytorialnego na dofinansowanie własnych zadań inwestycyjnych i zakupów inwestycyjnych | E23: =marzec!H23 -> 0 | H23: 0
B24: 60016 | D24: Drogi publiczne gminne | E24: =marzec!H24 -> 425000 | F24: =SUM(F25:F26) -> 0 | G24: =SUM(G25) -> 0 | H24: 425000
C25: 6260 | D25: Dotacje otrzymane z funduszy celowych na finansowanie lub dofinansowanie kosztów realizacjiinwestycji i zakupów inwestycyjnych jednostek sektora finansów publicznych | E25: =marzec!H25 -> 0 | H25: 0
C26: 6330 | D26: Dotacje celowe otrzymane z budżetu państwa na realizację inwestycji i zakupów inwestycyjnych własnych gmin (związków gmin) | E26: =marzec!H26 -> 425000 | F26: 0 | H26: 425000
A27: 700 | D27: Gospodarka mieszkaniowa | E27: =marzec!H27 -> 288430 | F27: =F28 -> 0 | G27: =G28 -> 0 | H27: 288430
B28: 70005 | D28: Gospodarka gruntami i nieruchomościami | E28: =marzec!H28 -> 288430 | F28: =SUM(F29:F36) -> 0 | G28: =SUM(G29:G36) -> 0 | H28: 288430
C29: 0470 | D29: Wpływy z opłat za zarząd, użytkowanie i użytkowanie wieczyste nieruchomości | E29: =marzec!H29 -> 8117 | H29: 8117
C30: 0690 | D30: Wpływy z różnych opłat | E30: =marzec!H30 -> 0 | H30: 0
C31: 0750 | D31: Dochody z najmu i dzierżawy składników majątkowych Skarbu Państwa, jednostek samorządu terytorialnego lub innych jednostek zaliczanych do sektora finansów publicznych oraz umów o podobnym charakterze | E31: =marzec!H31 -> 73800 | H31: 73800
C32: 0760 | D32: Wpływy z tytułu przekształcenia prawa użytkowania wieczystego przysługującego osobom fizycznym w prawo włsności | E32: =marzec!H32 -> 0 | H32: 0
C33: 0770 | D33: Wpłaty z tytułu odpłatnego nabycia prawa własności oraz prawa użytkowania wieczystego nieruchomości | E33: =marzec!H33 -> 200000 | H33: 200000
C34: 0830 | D34: Wpływy z usług | E34: =marzec!H34 -> 6013 | H34: 6013
C35: 0970 | D35: Wpływy z różnych dochodów | E35: =marzec!H35 -> 0 | H35: 0
C36: 0920 | D36: Pozostałe odsetki | E36: =marzec!H36 -> 500 | H36: 500
A37: 710 | D37: Działalność usługowa | E37: =marzec!H37 -> 0 | F37: =F38 -> 0 | G37: =G38 -> 0 | H37: 0
B38: 71035 | D38: Cmentarze | E38: =marzec!H38 -> 0 | F38: =SUM(F39) -> 0 | G38: =SUM(G39) -> 0 | H38: 0
C39: 2020 | D39: Dotacje celowe otrzymane z budżetu państwa na zadania bieżące realizowane przez gminę na podstawie porozumień z organizacjami administracji rządowej | E39: =marzec!H39 -> 0 | H39: 0
A40: 750 | D40: Administracja publiczna | E40: =marzec!H40 -> 79787 | F40: =F41+F44 -> 0 | G40: =G41+G44 -> 0 | H40: 79787
B41: 75011 | D41: Urzędy wojewódzkie | E41: =marzec!H41 -> 73287 | F41: =SUM(F42:F43) -> 0 | G41: =SUM(G42:G43) -> 0 | H41: 73287
C42: 2010 | D42: Dotacje celowe otrzymane z budżetu państwa na realizację zadań bieżących z zakresu administracji rządowej oraz innych zadań zleconych gminie(związkom gmin) ustawami | E42: =marzec!H42 -> 71287 | H42: 71287
C43: 2360 | D43: Dochody jednostek samorządu terytorialnego związane z realizacją zadań z zakresu administracji rządowej oraz innych zadań zleconych ustawami | E43: =marzec!H43 -> 2000 | H43: 2000
B44: 75023 | D44: Urzędy gmin(miast i miast na prawach pow.) | E44: =marzec!H44 -> 6500 | F44: =SUM(F45:F47) -> 0 | G44: =SUM(G45:G47) -> 0 | H44: 6500
C45: 0690 | D45: Wpływy z różnych opłat | E45: =marzec!H45 -> 3500 | H45: 3500
C46: 0830 | D46: Wpływy z usług | E46: =marzec!H46 -> 2000 | H46: 2000
C47: 0970 | D47: Wpływy z różnych dochodów | E47: =marzec!H47 -> 1000 | H47: 1000
A48: 751 | D48: Urzędy naczelnych organów władzypaństwowej, kontroli i ochrony prawa oraz sądownictwa | E48: =marzec!H48 -> 1026 | F48: =F49+F51 -> 0 | G48: =G49+G51 -> 6369 | H48: =H49+H51 -> 7395
B49: 75101 | D49: Urzędy naczelnych organów władzypaństwowej, kontroli i ochrony prawa | E49: =marzec!H49 -> 1026 | F49: =SUM(F50) -> 0 | G49: =SUM(G50) -> 0 | H49: 1026
C50: 2010 | D50: Dotacje celowe otrzymane z budżetu państwa na realizację zadań bieżących z zakresu administracji rządowej oraz innych zadań zleconych gminie(związkom gmin) ustawami | E50: =marzec!H50 -> 1026 | H50: 1026
B51: 75113 | D51: Wybory do Parlamentu Europejskiego | E51: =marzec!H51 -> 0 | F51: =F52 -> 0 | G51: =G52 -> 6369 | H51: 6369
C52: 2010 | D52: Dotacje celowe otrzymane z budżetu państwa na realizację zadań bieżących z zakresu administracji rządowej oraz innych zadań zleconych gminie(związkom gmin) ustawami | E52: =marzec!H52 -> 0 | G52: 6369 | H52: 6369
A53: 754 | D53: Bezpieczeństwo publiczne i ochrona przeciwpożarowa | E53: =marzec!H53 -> 400 | F53: =F55+F57 -> 0 | G53: =G54+G55 -> 0 | H53: 400
B54: 75412 | D54: Ochotnicze straże pożarne | E54: =marzec!H54 -> 0 | F54: =F55 -> 0 | G54: =G55+G56 -> 0 | H54: 0
C55: 2710 | D55: Dotacja celowa na pomoc finansową udzielaną między jednostkami samorządu terytorialnego na dofinansowanie własnych zadań bieżących | E55: =marzec!H55 -> 0 | H55: 0
C56: 6300 | D56: Wpływy z tytułu pomocy finansowej udzielanej miedzy JST na dofinansowanie własnych zadań inwestycyjnych i zakupów inwestycyjnych | E56: =marzec!H56 -> 0 | H56: 0
B57: 75414 | D57: Obrona cywilna | E57: =marzec!H57 -> 400 | F57: =SUM(F58) -> 0 | G57: =SUM(G58) -> 0 | H57: 400
C58: 2010 | D58: Dotacje celowe otrzymane z budżetu państwa na realizację zadań bieżących z zakresu administracji rządowej oraz innych zadań zleconych gminie(związkom gmin) ustawami | E58: =marzec!H58 -> 400 | H58: 400
A59: 756 | D59: Dochody od osób prawnych, od osób fizycznych i od in nych jrednostek nieposiadających osobowości prawnej oraz wydatki związane z ich poborem | E59: =marzec!H59 -> 2799568 | F59: =F60+F62+F68+F77+F84 -> 0 | G59: =G60+G62+G68+G77+G84 -> 0 | H59: 2799568
B60: 75601 | D60: Wpływy z podatku dochodowego od osób fizycznych | E60: =marzec!H60 -> 1500 | F60: =SUM(F61) -> 0 | G60: =SUM(G61) -> 0 | H60: 1500
C61: 0350 | D61: Podatek od działalnosci gospodarczej osób fizycznych opłacany w formie karty podatkowej | E61: =marzec!H61 -> 1500 | H61: 1500
B62: 75615 | D62: Wpływy z podatku rolnego, podatku leśnego,podatku od czynności cywilnoprawnych, podatku od spadków i darowizn oraz podatków i opłat lokalnych od osób prawnych i innych jenostek organizacyjnych | E62: =marzec!H62 -> 506482 | F62: =SUM(F63:F67) -> 0 | G62: =SUM(G63:G67) -> 0 | H62: 506482
C63: 0310 | D63: Podatek od nieruchomości | E63: =marzec!H63 -> 492000 | H63: 492000
C64: 0320 | D64: Podatek rolny | E64: =marzec!H64 -> 770 | H64: 770
C65: 0330 | D65: Podatek leśny | E65: =marzec!H65 -> 10365 | H65: 10365
C66: 0340 | D66: Podatek od środków transportowych | E66: =marzec!H66 -> 2347 | H66: 2347
C67: 0910 | D67: Odsetki od nieterminowych wpłat z tytułu podatków i opłat | E67: =marzec!H67 -> 1000 | H67: 1000
B68: 75616 | D68: Wpływy z podatku rolnego, podatku leśnego, podatku od spadków i darowizn, podatku od czynności cywilnoprawnych oraz podatków i opłat lokalnych od osób fizycznych | E68: =marzec!H68 -> 1036900 | F68: =SUM(F69:F76) -> 0 | G68: =SUM(G69:G76) -> 0 | H68: 1036900
C69: 0310 | D69: Podatek od nieruchomości | E69: =marzec!H69 -> 204500 | H69: 204500
C70: 0320 | D70: Podatek rolny | E70: =marzec!H70 -> 604000 | H70: 604000
C71: 0330 | D71: Podatek leśny | E71: =marzec!H71 -> 74000 | H71: 74000
C72: 0340 | D72: Podatek od środków transportowych | E72: =marzec!H72 -> 74400 | H72: 74400
C73: 0360 | D73: Podatek od spadków i darowizn | E73: =marzec!H73 -> 10000 | H73: 10000
C74: 0430 | D74: Wpływy z opłaty targowej | E74: =marzec!H74 -> 6500 | H74: 6500
C75: 0500 | D75: Podatek od czynności cywilnoprawnych | E75: =marzec!H75 -> 53500 | H75: 53500
C76: 0910 | D76: Odsetki od nieterminowych wpłat z tytułu podatków i opłat | E76: =marzec!H76 -> 10000 | H76: 10000
B77: 75618 | D77: Wpływy z innych opłat stanowiących dochody jednostek samorządu terytorialnego na podstawie ustaw | E77: =marzec!H77 -> 65000 | F77: =SUM(F78:F83) -> 0 | G77: =SUM(G78:G83) -> 0 | H77: 65000
C78: 0400 | D78: Wpływy z opłaty produktowej | E78: =marzec!H78 -> 500 | H78: 500
C79: 0410 | D79: Wpływy z opłaty skarbowej | E79: =marzec!H79 -> 27000 | H79: 27000
C80: 0460 | D80: Wpływy z opłaty eksploatacyjnej | E80: =marzec!H80 -> 4000 | H80: 4000
C81: 0480 | D81: Wpływy z opłat zawydawanie zezwoleń na sprzedaż alkoholu | E81: =marzec!H81 -> 30500 | H81: 30500
C82: 0490 | D82: Wpływy z innych lokalnych opłat pobieranych przez jednostki samorządu terytorialnego na podstawie odrębnych ustaw | E82: =marzec!H82 -> 3000 | H82: 3000
C83: 0910 | D83: Odsetki od nieterminowych wpłat z tytułu podatków i opłat | E83: =marzec!H83 -> 0 | H83: 0
B84: 75621 | D84: Udziały gmin w podatkach stanowiących dochód budżetu państwa | E84: =marzec!H84 -> 1189686 | F84: =SUM(F85:F86) -> 0 | G84: =SUM(G85:G86) -> 0 | H84: 1189686
C85: 0010 | D85: Podatek dochodowy od osób fizycznych | E85: =marzec!H85 -> 1183186 | H85: 1183186
C86: 0020 | D86: Podatek dochodowy od osób prawnych | E86: =marzec!H86 -> 6500 | H86: 6500
A87: 758 | D87: Różne rozliczenia | E87: =marzec!H87 -> 7685739 | F87: =F88+F90+F92+F94 -> 0 | G87: =G88+G90+G92+G94 -> 0 | H87: 7685739
B88: 75801 | D88: Część oświatowa subwencji ogólnej dla jednostek samorządu terytorialnego | E88: =marzec!H88 -> 4401446 | F88: =SUM(F89) -> 0 | G88: =SUM(G89) -> 0 | H88: 4401446
C89: 2920 | D89: Subwencje ogólne z budźetu państwa | E89: =marzec!H89 -> 4401446 | H89: 4401446
B90: 75807 | D90: Część wyrównawcza subwencji ogólnej dla gmin | E90: =marzec!H90 -> 3235728 | F90: =SUM(F91) -> 0 | G90: =SUM(G91) -> 0 | H90: 3235728
C91: 2920 | D91: Subwencje ogólne z budżetu państwa | E91: =marzec!H91 -> 3235728 | H91: 3235728
B92: 75814 | D92: Różne rozliczenia finansowe | E92: =marzec!H92 -> 10000 | F92: =SUM(F93) -> 0 | G92: =SUM(G93) -> 0 | H92: 10000
C93: 0920 | D93: Pozostałe odsetki | E93: =marzec!H93 -> 10000 | H93: 10000
B94: 75831 | D94: Część równoważąca subwencje ogólne dla gmin | E94: =marzec!H94 -> 38565 | F94: =SUM(F95) -> 0 | G94: =SUM(G95) -> 0 | H94: 38565
C95: 2920 | D95: Subwencje ogólne z budżetu państwa | E95: =marzec!H95 -> 38565 | H95: 38565
A96: 801 | D96: Oświata i wychowanie | E96: =marzec!H96 -> 38600 | F96: =F97+F100+F102 -> 0 | G96: =G97+G100+G102 -> 0 | H96: 38600
B97: 80101 | D97: Szkoły podstawowe | E97: =marzec!H97 -> 1000 | F97: =SUM(F98:F99) -> 0 | G97: =SUM(G98:G99) -> 0 | H97: =E97-F97+G97 -> 1000
C98: 2030 | D98: Dotacje celowe otrzymane z budżetu państwa na realizację własnych zadań bieżących gmin (związków gmin) | E98: =marzec!H98 -> 0 | H98: 0
C99: 0920 | D99: Pozostałe odsetki | E99: =marzec!H99 -> 1000 | H99: 1000
B100: 80104 | D100: Przedszkola | E100: =marzec!H100 -> 37600 | F100: =SUM(F101) -> 0 | G100: =SUM(G101) -> 0 | H100: 37600
C101: 0830 | D101: Wpływy z usług | E101: =marzec!H101 -> 37600 | H101: 37600
B102: 80195 | D102: Pozotała działalność | E102: =marzec!H102 -> 0 | F102: =SUM(F103) -> 0 | G102: =SUM(G103) -> 0 | H102: 0
C103: 2030 | D103: Dotacje celowe otrzymane z budżetu państwa na realizację własnych zadań bieżących gmin (związków gmin) | E103: =marzec!H103 -> 0 | H103: 0
A104: 852 | D104: Pomoc społeczna | E104: =marzec!H104 -> 2237629 | F104: =F105+F108+F110+F113+F117+F119 -> 0 | G104: =G105+G108+G110+G113+G117+G119 -> 4100 | H104: 2241729
B105: 85212 | D105: Świadczenia rodzinne, zaliczka alimentacyjn a oraz składki na ubezpieczenia emerytalne i rentowe z ubezpieczenia społecznego | E105: =marzec!H105 -> 1740000 | F105: =SUM(F106:F107) -> 0 | G105: =SUM(G106:G107) -> 0 | H105: 1740000
C106: 6310 | D106: Dotacje celowe otrzymane z budżetu państwa na inwestycje i zakupy inwestycyjne z zakresu administracji rządowej oraz innych zadań zleconych gminom ustawami | E106: =marzec!H106 -> 5000 | H106: 5000
C107: 2010 | D107: Dotacje celowe otrzymane z budżetu państwa na realizację zadań bieżących z zakresu administracji rządowej oraz innych zadań zleconych gminie(związkom gmin) ustawami | E107: =marzec!H107 -> 1740000 | H107: 1740000
B108: 85213 | D108: Składki na ubezpieczenie zdrowotne opłacane za osoby pobierajace niektóre swiadczenia z pomocy społecznej oraz niektóre świadczenia rodzinne | E108: =marzec!H108 -> 7100 | F108: =SUM(F109) -> 0 | G108: =SUM(G109) -> 0 | H108: 7100
C109: 2010 | D109: Dotacje celowe otrzymane z budżetu państwa na realizację zadań bieżących z zakresu administracji rządowej oraz innych zadań zleconych gminie(związkom gmin) ustawami | E109: =marzec!H109 -> 7100 | H109: 7100
B110: 85214 | D110: Zasiłki i pomoc w naturze oraz składki na ubezpieczenia emerytalne i rentowe | E110: =marzec!H110 -> 134700 | F110: =SUM(F111:F112) -> 0 | G110: =SUM(G111:G112) -> 0 | H110: 134700
C111: 2010 | D111: Dotacje celowe otrzymane z budżetu państwa na realizację zadań bieżących z zakresu administracji rządowej oraz innych zadań zleconych gminie(związkom gmin) ustawami | E111: =marzec!H111 -> 85000 | H111: 85000
C112: 2030 | D112: Dotacje celowe otrzymane z budżetu państwa na realizację własnych zadań bieżących gmin (związków gmin) | E112: =marzec!H112 -> 49700 | H112: 49700
B113: 85219 | D113: Ośrodki pomocy społecznej | E113: =marzec!H113 -> 106500 | F113: =SUM(F114:F116) -> 0 | G113: =SUM(G114:G116) -> 4100 | H113: 110600
C114: 2030 | D114: Dotacje celowe otrzymane z budżetu państwa na realizację własnych zadań bieżących gmin (związków gmin) | E114: =marzec!H114 -> 104000 | G114: 4100 | H114: 108100
C115: 0830 | D115: Wpływy z usług | E115: =marzec!H115 -> 1500 | H115: 1500
C116: 0920 | D116: Pozostale odsetki | E116: =marzec!H116 -> 1000 | H116: 1000
B117: 85228 | D117: Usługi opiekuńcze i specjalistyczne usługi opiekuńcze | E117: =marzec!H117 -> 18750 | F117: =SUM(F118) -> 0 | G117: =SUM(G118) -> 0 | H117: 18750
C118: 2010 | D118: Dotacje celowe otrzymane z budżetu państwa na realizację zadań bieżących z zakresu administracji rządowej oraz innych zadań zleconych gminie(związkom gmin) ustawami | E118: =marzec!H118 -> 18750 | H118: 18750
B119: 85295 | D119: Pozostała działałność | E119: =marzec!H119 -> 230579 | F119: =SUM(F120) -> 0 | G119: =SUM(G120:G121) -> 0 | H119: 230579
C120: 2030 | D120: Dotacje celowe otrzymane z budżetu państwa na realizację własnych zadań bieżących gmin (związków gmin) | E120: =marzec!H120 -> 60000 | H120: 60000
C121: 2023 | D121: Dotacje celowe otrzymane z budżetu państwa na zdania bieżące realizowane przez gminę na podstawie porozumień z organami administracji rządowej | E121: =marzec!H121 -> 170579 | H121: 170579
A122: 854 | D122: Edukacyjna opieka wychowawcza | E122: =marzec!H122 -> 65304 | F122: =SUM(F123) -> 0 | G122: =SUM(G123) -> 0 | H122: 65304
B123: 85415 | D123: Pomoc materialna dla uczniów | E123: =marzec!H123 -> 65304 | F123: =SUM(F124) -> 0 | G123: =SUM(G124) -> 0 | H123: 65304
C124: 2030 | D124: Dotacje celowe otrzymane z budżetu państwa na realizację własnych zadań bieżących gmin (związków gmin) | E124: =marzec!H124 -> 65304 | H124: 65304
A125: 900 | D125: Gospodarka komunalna i ochrona środowiska | E125: =marzec!H125 -> 0 | F125: =F126 -> 0 | G125: =G126 -> 0 | H125: 0
B126: 90095 | D126: Pozostała działalność | E126: =marzec!H126 -> 0 | F126: =SUM(F127) -> 0 | G126: =SUM(G127) -> 0 | H126: 0
C127: 2440 | D127: Dotacje przekazane z funduszy celowych na realizację zadań bieżących dla jedostek sektora finansów publicznych | E127: =marzec!H127 -> 0 | H127: 0
A129: Dochody ogółem | E129: =marzec!H129 -> 13651351 | F129: =F13+F20+F27+F40+F48+F53+F59+F87+F96+F104+F37 -> 0 | G129: =G13+G20+G27+G40+G48+G53+G59+G87+G96+G104+G37+G122 -> 10469 | H129: 13661820

Sheet maj
E4: Załącznik nr 1
E5: do zarządzenia nr 10 /09
E6: Burmistrza Miasta i Gminy Mordy
A7: Dochody | E7: z dnia 4 maja 2009r.
A11: Dział | B11: Rozdział* | C11: § | D11: Źródło dochodów | E11: Plan na 2009 rok | F11: Zmniejszenia | G11: Zwiększenia | H11: Plan po zmianach
A12: 1 | B12: 2 | C12: 3 | D12: 4 | E12: 5 | F12: 6 | G12: 7 | H12: 8
A13: 010 | D13: Rolnictwo i łowiectwo | E13: =kwiecień!H13 -> 14676 | F13: =F14+F17 -> 0 | G13: =G14+G17 -> 0 | H13: =E13-F13+G13 -> 14676
B14: 01010 | D14: Infrastruktura wodociągowa i sanitacyjna wsi | E14: =kwiecień!H14 -> 10000 | F14: =SUM(F15) -> 0 | G14: =SUM(G15) -> 0 | H14: =E14-F14+G14 -> 10000
C15: 6290 | D15: Środki na dofinansowanie własnych inwestycji gmin( związków gmin), powiatów(związków powiatów), samorządów województw, pozyskane z innych źródeł | E15: =kwiecień!H15 -> 10000 | H15: =E15-F15+G15 -> 10000
C16: 6300 | D16: Wpływy z tytułu pomocy finansowej udzielanej między jednostkami samorządu terytorialnego na dofinansowanie własnych zadań inwestycyjnych i zakupów inwestycyjnych | E16: =kwiecień!H16 -> 0 | H16: 0
B17: 01095 | D17: Pozostała działalność | E17: =kwiecień!H17 -> 4676 | F17: =SUM(F18:F19) -> 0 | G17: =SUM(G18:G19) -> 0 | H17: 4676
C18: 2010 | D18: Dotacje celowe otrzymane z budżetu państwa na realizację zadań bieżących z zakresu administracji rządowej oraz innych zadań zleconych gminie(związkom gmin) ustawami | E18: =kwiecień!H18 -> 0 | H18: =E18-F18+G18 -> 0
C19: 0750 | D19: Dochody z najmu i dzierżawy składników majątkowych Skarbu Państwa, jednostek samorządu terytorialnego lub innych jednostek zaliczanych do sektora finansów publicznych oraz umów o podobnym charakterze | E19: =kwiecień!H19 -> 4676 | H19: =E19-F19+G19 -> 4676
A20: 600 | D20: Transport i łączność | E20: =kwiecień!H20 -> 440192 | F20: =F21+F24 -> 0 | G20: =G21+G24 -> 0 | H20: 440192
B21: 60014 | D21: Drogi publiczne powiatowe | E21: =kwiecień!H21 -> 15192 | F21: =SUM(F22:F23) -> 0 | G21: =SUM(G22:G23) -> 0 | H21: 15192
C22: 2320 | D22: Dotacje celowe otrzymane z powiatu na zadania bieżące realizowane na podstawie porozumień(umów) między jst | E22: =kwiecień!H22 -> 15192 | H22: 15192
C23: 6300 | D23: Wpływy z tytułu pomocy finansowej udzielanej między jednostkami samorządu terytorialnego na dofinansowanie własnych zadań inwestycyjnych i zakupów inwestycyjnych | E23: =kwiecień!H23 -> 0 | H23: 0
B24: 60016 | D24: Drogi publiczne gminne | E24: =kwiecień!H24 -> 425000 | F24: =SUM(F25:F26) -> 0 | G24: =SUM(G25) -> 0 | H24: 425000
C25: 6260 | D25: Dotacje otrzymane z funduszy celowych na finansowanie lub dofinansowanie kosztów realizacjiinwestycji i zakupów inwestycyjnych jednostek sektora finansów publicznych | E25: =kwiecień!H25 -> 0 | H25: 0
C26: 6330 | D26: Dotacje celowe otrzymane z budżetu państwa na realizację inwestycji i zakupów inwestycyjnych własnych gmin (związków gmin) | E26: =kwiecień!H26 -> 425000 | F26: 0 | H26: 425000
A27: 700 | D27: Gospodarka mieszkaniowa | E27: =kwiecień!H27 -> 288430 | F27: =F28 -> 0 | G27: =G28 -> 0 | H27: 288430
B28: 70005 | D28: Gospodarka gruntami i nieruchomościami | E28: =kwiecień!H28 -> 288430 | F28: =SUM(F29:F36) -> 0 | G28: =SUM(G29:G36) -> 0 | H28: 288430
C29: 0470 | D29: Wpływy z opłat za zarząd, użytkowanie i użytkowanie wieczyste nieruchomości | E29: =kwiecień!H29 -> 8117 | H29: 8117
C30: 0690 | D30: Wpływy z różnych opłat | E30: =kwiecień!H30 -> 0 | H30: 0
C31: 0750 | D31: Dochody z najmu i dzierżawy składników majątkowych Skarbu Państwa, jednostek samorządu terytorialnego lub innych jednostek zaliczanych do sektora finansów publicznych oraz umów o podobnym charakterze | E31: =kwiecień!H31 -> 73800 | H31: 73800
C32: 0760 | D32: Wpływy z tytułu przekształcenia prawa użytkowania wieczystego przysługującego osobom fizycznym w prawo włsności | E32: =kwiecień!H32 -> 0 | H32: 0
C33: 0770 | D33: Wpłaty z tytułu odpłatnego nabycia prawa własności oraz prawa użytkowania wieczystego nieruchomości | E33: =kwiecień!H33 -> 200000 | H33: 200000
C34: 0830 | D34: Wpływy z usług | E34: =kwiecień!H34 -> 6013 | H34: 6013
C35: 0970 | D35: Wpływy z różnych dochodów | E35: =kwiecień!H35 -> 0 | H35: 0
C36: 0920 | D36: Pozostałe odsetki | E36: =kwiecień!H36 -> 500 | H36: 500
A37: 710 | D37: Działalność usługowa | E37: =kwiecień!H37 -> 0 | F37: =F38 -> 0 | G37: =G38 -> 0 | H37: 0
B38: 71035 | D38: Cmentarze | E38: =kwiecień!H38 -> 0 | F38: =SUM(F39) -> 0 | G38: =SUM(G39) -> 0 | H38: 0
C39: 2020 | D39: Dotacje celowe otrzymane z budżetu państwa na zadania bieżące realizowane przez gminę na podstawie porozumień z organizacjami administracji rządowej | E39: =kwiecień!H39 -> 0 | H39: 0
A40: 750 | D40: Administracja publiczna | E40: =kwiecień!H40 -> 79787 | F40: =F41+F44 -> 0 | G40: =G41+G44 -> 0 | H40: 79787
B41: 75011 | D41: Urzędy wojewódzkie | E41: =kwiecień!H41 -> 73287 | F41: =SUM(F42:F43) -> 0 | G41: =SUM(G42:G43) -> 0 | H41: 73287
C42: 2010 | D42: Dotacje celowe otrzymane z budżetu państwa na realizację zadań bieżących z zakresu administracji rządowej oraz innych zadań zleconych gminie(związkom gmin) ustawami | E42: =kwiecień!H42 -> 71287 | H42: 71287
C43: 2360 | D43: Dochody jednostek samorządu terytorialnego związane z realizacją zadań z zakresu administracji rządowej oraz innych zadań zleconych ustawami | E43: =kwiecień!H43 -> 2000 | H43: 2000
B44: 75023 | D44: Urzędy gmin(miast i miast na prawach pow.) | E44: =kwiecień!H44 -> 6500 | F44: =SUM(F45:F47) -> 0 | G44: =SUM(G45:G47) -> 0 | H44: 6500
C45: 0690 | D45: Wpływy z różnych opłat | E45: =kwiecień!H45 -> 3500 | H45: 3500
C46: 0830 | D46: Wpływy z usług | E46: =kwiecień!H46 -> 2000 | H46: 2000
C47: 0970 | D47: Wpływy z różnych dochodów | E47: =kwiecień!H47 -> 1000 | H47: 1000
A48: 751 | D48: Urzędy naczelnych organów władzypaństwowej, kontroli i ochrony prawa oraz sądownictwa | E48: =kwiecień!H48 -> 7395 | F48: =F49+F51 -> 0 | G48: =G49+G51 -> 0 | H48: =H49+H51 -> 7395
B49: 75101 | D49: Urzędy naczelnych organów władzypaństwowej, kontroli i ochrony prawa | E49: =kwiecień!H49 -> 1026 | F49: =SUM(F50) -> 0 | G49: =SUM(G50) -> 0 | H49: 1026
C50: 2010 | D50: Dotacje celowe otrzymane z budżetu państwa na realizację zadań bieżących z zakresu administracji rządowej oraz innych zadań zleconych gminie(związkom gmin) ustawami | E50: =kwiecień!H50 -> 1026 | H50: 1026
B51: 75113 | D51: Wybory do Parlamentu Europejskiego | E51: =kwiecień!H51 -> 6369 | F51: =F52 -> 0 | G51: =G52 -> 0 | H51: 6369
C52: 2010 | D52: Dotacje celowe otrzymane z budżetu państwa na realizację zadań bieżących z zakresu administracji rządowej oraz innych zadań zleconych gminie(związkom gmin) ustawami | E52: =kwiecień!H52 -> 6369 | H52: 6369
A53: 754 | D53: Bezpieczeństwo publiczne i ochrona przeciwpożarowa | E53: =kwiecień!H53 -> 400 | F53: =F55+F57 -> 0 | G53: =G54+G55 -> 0 | H53: 400
B54: 75412 | D54: Ochotnicze straże pożarne | E54: =kwiecień!H54 -> 0 | F54: =F55 -> 0 | G54: =G55+G56 -> 0 | H54: 0
C55: 2710 | D55: Dotacja celowa na pomoc finansową udzielaną między jednostkami samorządu terytorialnego na dofinansowanie własnych zadań bieżących | E55: =kwiecień!H55 -> 0 | H55: 0
C56: 6300 | D56: Wpływy z tytułu pomocy finansowej udzielanej miedzy JST na dofinansowanie własnych zadań inwestycyjnych i zakupów inwestycyjnych | E56: =kwiecień!H56 -> 0 | H56: 0
B57: 75414 | D57: Obrona cywilna | E57: =kwiecień!H57 -> 400 | F57: =SUM(F58) -> 0 | G57: =SUM(G58) -> 0 | H57: 400
C58: 2010 | D58: Dotacje celowe otrzymane z budżetu państwa na realizację zadań bieżących z zakresu administracji rządowej oraz innych zadań zleconych gminie(związkom gmin) ustawami | E58: =kwiecień!H58 -> 400 | H58: 400
A59: 756 | D59: Dochody od osób prawnych, od osób fizycznych i od in nych jrednostek nieposiadających osobowości prawnej oraz wydatki związane z ich poborem | E59: =kwiecień!H59 -> 2799568 | F59: =F60+F62+F68+F77+F84 -> 0 | G59: =G60+G62+G68+G77+G84 -> 0 | H59: 2799568
B60: 75601 | D60: Wpływy z podatku dochodowego od osób fizycznych | E60: =kwiecień!H60 -> 1500 | F60: =SUM(F61) -> 0 | G60: =SUM(G61) -> 0 | H60: 1500
C61: 0350 | D61: Podatek od działalnosci gospodarczej osób fizycznych opłacany w formie karty podatkowej | E61: =kwiecień!H61 -> 1500 | H61: 1500
B62: 75615 | D62: Wpływy z podatku rolnego, podatku leśnego,podatku od czynności cywilnoprawnych, podatku od spadków i darowizn oraz podatków i opłat lokalnych od osób prawnych i innych jenostek organizacyjnych | E62: =kwiecień!H62 -> 506482 | F62: =SUM(F63:F67) -> 0 | G62: =SUM(G63:G67) -> 0 | H62: 506482
C63: 0310 | D63: Podatek od nieruchomości | E63: =kwiecień!H63 -> 492000 | H63: 492000
C64: 0320 | D64: Podatek rolny | E64: =kwiecień!H64 -> 770 | H64: 770
C65: 0330 | D65: Podatek leśny | E65: =kwiecień!H65 -> 10365 | H65: 10365
C66: 0340 | D66: Podatek od środków transportowych | E66: =kwiecień!H66 -> 2347 | H66: 2347
C67: 0910 | D67: Odsetki od nieterminowych wpłat z tytułu podatków i opłat | E67: =kwiecień!H67 -> 1000 | H67: 1000
B68: 75616 | D68: Wpływy z podatku rolnego, podatku leśnego, podatku od spadków i darowizn, podatku od czynności cywilnoprawnych oraz podatków i opłat lokalnych od osób fizycznych | E68: =kwiecień!H68 -> 1036900 | F68: =SUM(F69:F76) -> 0 | G68: =SUM(G69:G76) -> 0 | H68: 1036900
C69: 0310 | D69: Podatek od nieruchomości | E69: =kwiecień!H69 -> 204500 | H69: 204500
C70: 0320 | D70: Podatek rolny | E70: =kwiecień!H70 -> 604000 | H70: 604000
C71: 0330 | D71: Podatek leśny | E71: =kwiecień!H71 -> 74000 | H71: 74000
C72: 0340 | D72: Podatek od środków transportowych | E72: =kwiecień!H72 -> 74400 | H72: 74400
C73: 0360 | D73: Podatek od spadków i darowizn | E73: =kwiecień!H73 -> 10000 | H73: 10000
C74: 0430 | D74: Wpływy z opłaty targowej | E74: =kwiecień!H74 -> 6500 | H74: 6500
C75: 0500 | D75: Podatek od czynności cywilnoprawnych | E75: =kwiecień!H75 -> 53500 | H75: 53500
C76: 0910 | D76: Odsetki od nieterminowych wpłat z tytułu podatków i opłat | E76: =kwiecień!H76 -> 10000 | H76: 10000
B77: 75618 | D77: Wpływy z innych opłat stanowiących dochody jednostek samorządu terytorialnego na podstawie ustaw | E77: =kwiecień!H77 -> 65000 | F77: =SUM(F78:F83) -> 0 | G77: =SUM(G78:G83) -> 0 | H77: 65000
C78: 0400 | D78: Wpływy z opłaty produktowej | E78: =kwiecień!H78 -> 500 | H78: 500
C79: 0410 | D79: Wpływy z opłaty skarbowej | E79: =kwiecień!H79 -> 27000 | H79: 27000
C80: 0460 | D80: Wpływy z opłaty eksploatacyjnej | E80: =kwiecień!H80 -> 4000 | H80: 4000
C81: 0480 | D81: Wpływy z opłat zawydawanie zezwoleń na sprzedaż alkoholu | E81: =kwiecień!H81 -> 30500 | H81: 30500
C82: 0490 | D82: Wpływy z innych lokalnych opłat pobieranych przez jednostki samorządu terytorialnego na podstawie odrębnych ustaw | E82: =kwiecień!H82 -> 3000 | H82: 3000
C83: 0910 | D83: Odsetki od nieterminowych wpłat z tytułu podatków i opłat | E83: =kwiecień!H83 -> 0 | H83: 0
B84: 75621 | D84: Udziały gmin w podatkach stanowiących dochód budżetu państwa | E84: =kwiecień!H84 -> 1189686 | F84: =SUM(F85:F86) -> 0 | G84: =SUM(G85:G86) -> 0 | H84: 1189686
C85: 0010 | D85: Podatek dochodowy od osób fizycznych | E85: =kwiecień!H85 -> 1183186 | H85: 1183186
C86: 0020 | D86: Podatek dochodowy od osób prawnych | E86: =kwiecień!H86 -> 6500 | H86: 6500
A87: 758 | D87: Różne rozliczenia | E87: =kwiecień!H87 -> 7685739 | F87: =F88+F90+F92+F94 -> 0 | G87: =G88+G90+G92+G94 -> 0 | H87: 7685739
B88: 75801 | D88: Część oświatowa subwencji ogólnej dla jednostek samorządu terytorialnego | E88: =kwiecień!H88 -> 4401446 | F88: =SUM(F89) -> 0 | G88: =SUM(G89) -> 0 | H88: 4401446
C89: 2920 | D89: Subwencje ogólne z budźetu państwa | E89: =kwiecień!H89 -> 4401446 | H89: 4401446
B90: 75807 | D90: Część wyrównawcza subwencji ogólnej dla gmin | E90: =kwiecień!H90 -> 3235728 | F90: =SUM(F91) -> 0 | G90: =SUM(G91) -> 0 | H90: 3235728
C91: 2920 | D91: Subwencje ogólne z budżetu państwa | E91: =kwiecień!H91 -> 3235728 | H91: 3235728
B92: 75814 | D92: Różne rozliczenia finansowe | E92: =kwiecień!H92 -> 10000 | F92: =SUM(F93) -> 0 | G92: =SUM(G93) -> 0 | H92: 10000
C93: 0920 | D93: Pozostałe odsetki | E93: =kwiecień!H93 -> 10000 | H93: 10000
B94: 75831 | D94: Część równoważąca subwencje ogólne dla gmin | E94: =kwiecień!H94 -> 38565 | F94: =SUM(F95) -> 0 | G94: =SUM(G95) -> 0 | H94: 38565
C95: 2920 | D95: Subwencje ogólne z budżetu państwa | E95: =kwiecień!H95 -> 38565 | H95: 38565
A96: 801 | D96: Oświata i wychowanie | E96: =kwiecień!H96 -> 38600 | F96: =F97+F100+F102 -> 0 | G96: =G97+G100+G102 -> 0 | H96: 38600
B97: 80101 | D97: Szkoły podstawowe | E97: =kwiecień!H97 -> 1000 | F97: =SUM(F98:F99) -> 0 | G97: =SUM(G98:G99) -> 0 | H97: =E97-F97+G97 -> 1000
C98: 2030 | D98: Dotacje celowe otrzymane z budżetu państwa na realizację własnych zadań bieżących gmin (związków gmin) | E98: =kwiecień!H98 -> 0 | H98: 0
C99: 0920 | D99: Pozostałe odsetki | E99: =kwiecień!H99 -> 1000 | H99: 1000
B100: 80104 | D100: Przedszkola | E100: =kwiecień!H100 -> 37600 | F100: =SUM(F101) -> 0 | G100: =SUM(G101) -> 0 | H100: 37600
C101: 0830 | D101: Wpływy z usług | E101: =kwiecień!H101 -> 37600 | H101: 37600
B102: 80195 | D102: Pozotała działalność | E102: =kwiecień!H102 -> 0 | F102: =SUM(F103) -> 0 | G102: =SUM(G103) -> 0 | H102: 0
C103: 2030 | D103: Dotacje celowe otrzymane z budżetu państwa na realizację własnych zadań bieżących gmin (związków gmin) | E103: =kwiecień!H103 -> 0 | H103: 0
A104: 852 | D104: Pomoc społeczna | E104: =kwiecień!H104 -> 2241729 | F104: =F105+F108+F110+F113+F117+F119 -> 0 | G104: =G105+G108+G110+G113+G117+G119 -> 6486 | H104: 2248215
B105: 85212 | D105: Świadczenia rodzinne, zaliczka alimentacyjn a oraz składki na ubezpieczenia emerytalne i rentowe z ubezpieczenia społecznego | E105: =kwiecień!H105 -> 1740000 | F105: =SUM(F106:F107) -> 0 | G105: =SUM(G106:G107) -> 0 | H105: 1740000
C106: 6310 | D106: Dotacje celowe otrzymane z budżetu państwa na inwestycje i zakupy inwestycyjne z zakresu administracji rządowej oraz innych zadań zleconych gminom ustawami | E106: =kwiecień!H106 -> 5000 | H106: 5000
C107: 2010 | D107: Dotacje celowe otrzymane z budżetu państwa na realizację zadań bieżących z zakresu administracji rządowej oraz innych zadań zleconych gminie(związkom gmin) ustawami | E107: =kwiecień!H107 -> 1740000 | H107: 1740000
B108: 85213 | D108: Składki na ubezpieczenie zdrowotne opłacane za osoby pobierajace niektóre swiadczenia z pomocy społecznej oraz niektóre świadczenia rodzinne | E108: =kwiecień!H108 -> 7100 | F108: =SUM(F109) -> 0 | G108: =SUM(G109) -> 0 | H108: 7100
C109: 2010 | D109: Dotacje celowe otrzymane z budżetu państwa na realizację zadań bieżących z zakresu administracji rządowej oraz innych zadań zleconych gminie(związkom gmin) ustawami | E109: =kwiecień!H109 -> 7100 | H109: 7100
B110: 85214 | D110: Zasiłki i pomoc w naturze oraz składki na ubezpieczenia emerytalne i rentowe | E110: =kwiecień!H110 -> 134700 | F110: =SUM(F111:F112) -> 0 | G110: =SUM(G111:G112) -> 0 | H110: 134700
C111: 2010 | D111: Dotacje celowe otrzymane z budżetu państwa na realizację zadań bieżących z zakresu administracji rządowej oraz innych zadań zleconych gminie(związkom gmin) ustawami | E111: =kwiecień!H111 -> 85000 | H111: 85000
C112: 2030 | D112: Dotacje celowe otrzymane z budżetu państwa na realizację własnych zadań bieżących gmin (związków gmin) | E112: =kwiecień!H112 -> 49700 | H112: 49700
B113: 85219 | D113: Ośrodki pomocy społecznej | E113: =kwiecień!H113 -> 110600 | F113: =SUM(F114:F116) -> 0 | G113: =SUM(G114:G116) -> 0 | H113: 110600
C114: 2030 | D114: Dotacje celowe otrzymane z budżetu państwa na realizację własnych zadań bieżących gmin (związków gmin) | E114: =kwiecień!H114 -> 108100 | H114: 108100
C115: 0830 | D115: Wpływy z usług | E115: =kwiecień!H115 -> 1500 | H115: 1500
C116: 0920 | D116: Pozostale odsetki | E116: =kwiecień!H116 -> 1000 | H116: 1000
B117: 85228 | D117: Usługi opiekuńcze i specjalistyczne usługi opiekuńcze | E117: =kwiecień!H117 -> 18750 | F117: =SUM(F118) -> 0 | G117: =SUM(G118) -> 0 | H117: 18750
C118: 2010 | D118: Dotacje celowe otrzymane z budżetu państwa na realizację zadań bieżących z zakresu administracji rządowej oraz innych zadań zleconych gminie(związkom gmin) ustawami | E118: =kwiecień!H118 -> 18750 | H118: 18750
B119: 85295 | D119: Pozostała działałność | E119: =kwiecień!H119 -> 230579 | F119: =SUM(F120) -> 0 | G119: =SUM(G120:G121) -> 6486 | H119: 237065
C120: 2030 | D120: Dotacje celowe otrzymane z budżetu państwa na realizację własnych zadań bieżących gmin (związków gmin) | E120: =kwiecień!H120 -> 60000 | H120: 60000
C121: 2023 | D121: Dotacje celowe otrzymane z budżetu państwa na zdania bieżące realizowane przez gminę na podstawie porozumień z organami administracji rządowej | E121: =kwiecień!H121 -> 170579 | G121: 6486 | H121: 177065
A122: 854 | D122: Edukacyjna opieka wychowawcza | E122: =kwiecień!H122 -> 65304 | F122: =SUM(F123) -> 0 | G122: =SUM(G123) -> 0 | H122: 65304
B123: 85415 | D123: Pomoc materialna dla uczniów | E123: =kwiecień!H123 -> 65304 | F123: =SUM(F124) -> 0 | G123: =SUM(G124) -> 0 | H123: 65304
C124: 2030 | D124: Dotacje celowe otrzymane z budżetu państwa na realizację własnych zadań bieżących gmin (związków gmin) | E124: =kwiecień!H124 -> 65304 | H124: 65304
A125: 900 | D125: Gospodarka komunalna i ochrona środowiska | E125: =kwiecień!H125 -> 0 | F125: =F126 -> 0 | G125: =G126 -> 0 | H125: 0
B126: 90095 | D126: Pozostała działalność | E126: =kwiecień!H126 -> 0 | F126: =SUM(F127) -> 0 | G126: =SUM(G127) -> 0 | H126: 0
C127: 2440 | D127: Dotacje przekazane z funduszy celowych na realizację zadań bieżących dla jedostek sektora finansów publicznych | E127: =kwiecień!H127 -> 0 | H127: 0
A129: Dochody ogółem | E129: =kwiecień!H129 -> 13661820 | F129: =F13+F20+F27+F40+F48+F53+F59+F87+F96+F104+F37 -> 0 | G129: =G13+G20+G27+G40+G48+G53+G59+G87+G96+G104+G37+G122 -> 6486 | H129: 13668306

Sheet 21 maja
E4: Załącznik nr 1
E5: do uchwały nr XXIX / 139/09
E6: Rady Miejskiej w Mordach
A7: Dochody | E7: z dnia 21 maja 2009r.
A11: Dział | B11: Rozdział* | C11: § | D11: Źródło dochodów | E11: Plan na 2009 rok | F11: Zmniejszenia | G11: Zwiększenia | H11: Plan po zmianach
A12: 1 | B12: 2 | C12: 3 | D12: 4 | E12: 5 | F12: 6 | G12: 7 | H12: 8
A13: 010 | D13: Rolnictwo i łowiectwo | E13: =maj!H13 -> 14676 | F13: =F14+F17 -> 0 | G13: =G14+G17 -> 304433 | H13: =E13-F13+G13 -> 319109
B14: 01010 | D14: Infrastruktura wodociągowa i sanitacyjna wsi | E14: =maj!H14 -> 10000 | F14: =SUM(F15) -> 0 | G14: =SUM(G15) -> 0 | H14: =E14-F14+G14 -> 10000
C15: 6290 | D15: Środki na dofinansowanie własnych inwestycji gmin( związków gmin), powiatów(związków powiatów), samorządów województw, pozyskane z innych źródeł | E15: =maj!H15 -> 10000 | H15: =E15-F15+G15 -> 10000
C16: 6300 | D16: Wpływy z tytułu pomocy finansowej udzielanej między jednostkami samorządu terytorialnego na dofinansowanie własnych zadań inwestycyjnych i zakupów inwestycyjnych | E16: =maj!H16 -> 0 | H16: 0
B17: 01095 | D17: Pozostała działalność | E17: =maj!H17 -> 4676 | F17: =SUM(F18:F19) -> 0 | G17: =SUM(G18:G19) -> 304433 | H17: 309109
C18: 2010 | D18: Dotacje celowe otrzymane z budżetu państwa na realizację zadań bieżących z zakresu administracji rządowej oraz innych zadań zleconych gminie(związkom gmin) ustawami | E18: =maj!H18 -> 0 | G18: 304433 | H18: =E18-F18+G18 -> 304433
C19: 0750 | D19: Dochody z najmu i dzierżawy składników majątkowych Skarbu Państwa, jednostek samorządu terytorialnego lub innych jednostek zaliczanych do sektora finansów publicznych oraz umów o podobnym charakterze | E19: =maj!H19 -> 4676 | H19: =E19-F19+G19 -> 4676
A20: 600 | D20: Transport i łączność | E20: =maj!H20 -> 440192 | F20: =F21+F24 -> 0 | G20: =G21+G24 -> 0 | H20: 440192
B21: 60014 | D21: Drogi publiczne powiatowe | E21: =maj!H21 -> 15192 | F21: =SUM(F22:F23) -> 0 | G21: =SUM(G22:G23) -> 0 | H21: 15192
C22: 2320 | D22: Dotacje celowe otrzymane z powiatu na zadania bieżące realizowane na podstawie porozumień(umów) między jst | E22: =maj!H22 -> 15192 | H22: 15192
C23: 6300 | D23: Wpływy z tytułu pomocy finansowej udzielanej między jednostkami samorządu terytorialnego na dofinansowanie własnych zadań inwestycyjnych i zakupów inwestycyjnych | E23: =maj!H23 -> 0 | H23: 0
B24: 60016 | D24: Drogi publiczne gminne | E24: =maj!H24 -> 425000 | F24: =SUM(F25:F26) -> 0 | G24: =SUM(G25) -> 0 | H24: 425000
C25: 6260 | D25: Dotacje otrzymane z funduszy celowych na finansowanie lub dofinansowanie kosztów realizacjiinwestycji i zakupów inwestycyjnych jednostek sektora finansów publicznych | E25: =maj!H25 -> 0 | H25: 0
C26: 6330 | D26: Dotacje celowe otrzymane z budżetu państwa na realizację inwestycji i zakupów inwestycyjnych własnych gmin (związków gmin) | E26: =maj!H26 -> 425000 | F26: 0 | H26: 425000
A27: 700 | D27: Gospodarka mieszkaniowa | E27: =maj!H27 -> 288430 | F27: =F28 -> 0 | G27: =G28 -> 0 | H27: 288430
B28: 70005 | D28: Gospodarka gruntami i nieruchomościami | E28: =maj!H28 -> 288430 | F28: =SUM(F29:F36) -> 0 | G28: =SUM(G29:G36) -> 0 | H28: 288430
C29: 0470 | D29: Wpływy z opłat za zarząd, użytkowanie i użytkowanie wieczyste nieruchomości | E29: =maj!H29 -> 8117 | H29: 8117
C30: 0690 | D30: Wpływy z różnych opłat | E30: =maj!H30 -> 0 | H30: 0
C31: 0750 | D31: Dochody z najmu i dzierżawy składników majątkowych Skarbu Państwa, jednostek samorządu terytorialnego lub innych jednostek zaliczanych do sektora finansów publicznych oraz umów o podobnym charakterze | E31: =maj!H31 -> 73800 | H31: 73800
C32: 0760 | D32: Wpływy z tytułu przekształcenia prawa użytkowania wieczystego przysługującego osobom fizycznym w prawo włsności | E32: =maj!H32 -> 0 | H32: 0
C33: 0770 | D33: Wpłaty z tytułu odpłatnego nabycia prawa własności oraz prawa użytkowania wieczystego nieruchomości | E33: =maj!H33 -> 200000 | H33: 200000
C34: 0830 | D34: Wpływy z usług | E34: =maj!H34 -> 6013 | H34: 6013
C35: 0970 | D35: Wpływy z różnych dochodów | E35: =maj!H35 -> 0 | H35: 0
C36: 0920 | D36: Pozostałe odsetki | E36: =maj!H36 -> 500 | H36: 500
A37: 710 | D37: Działalność usługowa | E37: =maj!H37 -> 0 | F37: =F38 -> 0 | G37: =G38 -> 0 | H37: 0
B38: 71035 | D38: Cmentarze | E38: =maj!H38 -> 0 | F38: =SUM(F39) -> 0 | G38: =SUM(G39) -> 0 | H38: 0
C39: 2020 | D39: Dotacje celowe otrzymane z budżetu państwa na zadania bieżące realizowane przez gminę na podstawie porozumień z organizacjami administracji rządowej | E39: =maj!H39 -> 0 | H39: 0
A40: 750 | D40: Administracja publiczna | E40: =maj!H40 -> 79787 | F40: =F41+F44 -> 0 | G40: =G41+G44 -> 0 | H40: 79787
B41: 75011 | D41: Urzędy wojewódzkie | E41: =maj!H41 -> 73287 | F41: =SUM(F42:F43) -> 0 | G41: =SUM(G42:G43) -> 0 | H41: 73287
C42: 2010 | D42: Dotacje celowe otrzymane z budżetu państwa na realizację zadań bieżących z zakresu administracji rządowej oraz innych zadań zleconych gminie(związkom gmin) ustawami | E42: =maj!H42 -> 71287 | H42: 71287
C43: 2360 | D43: Dochody jednostek samorządu terytorialnego związane z realizacją zadań z zakresu administracji rządowej oraz innych zadań zleconych ustawami | E43: =maj!H43 -> 2000 | H43: 2000
B44: 75023 | D44: Urzędy gmin(miast i miast na prawach pow.) | E44: =maj!H44 -> 6500 | F44: =SUM(F45:F47) -> 0 | G44: =SUM(G45:G47) -> 0 | H44: 6500
C45: 0690 | D45: Wpływy z różnych opłat | E45: =maj!H45 -> 3500 | H45: 3500
C46: 0830 | D46: Wpływy z usług | E46: =maj!H46 -> 2000 | H46: 2000
C47: 0970 | D47: Wpływy z różnych dochodów | E47: =maj!H47 -> 1000 | H47: 1000
A48: 751 | D48: Urzędy naczelnych organów władzypaństwowej, kontroli i ochrony prawa oraz sądownictwa | E48: =maj!H48 -> 7395 | F48: =F49+F51 -> 0 | G48: =G49+G51 -> 0 | H48: =H49+H51 -> 7395
B49: 75101 | D49: Urzędy naczelnych organów władzypaństwowej, kontroli i ochrony prawa | E49: =maj!H49 -> 1026 | F49: =SUM(F50) -> 0 | G49: =SUM(G50) -> 0 | H49: 1026
C50: 2010 | D50: Dotacje celowe otrzymane z budżetu państwa na realizację zadań bieżących z zakresu administracji rządowej oraz innych zadań zleconych gminie(związkom gmin) ustawami | E50: =maj!H50 -> 1026 | H50: 1026
B51: 75113 | D51: Wybory do Parlamentu Europejskiego | E51: =maj!H51 -> 6369 | F51: =F52 -> 0 | G51: =G52 -> 0 | H51: 6369
C52: 2010 | D52: Dotacje celowe otrzymane z budżetu państwa na realizację zadań bieżących z zakresu administracji rządowej oraz innych zadań zleconych gminie(związkom gmin) ustawami | E52: =maj!H52 -> 6369 | H52: 6369
A53: 754 | D53: Bezpieczeństwo publiczne i ochrona przeciwpożarowa | E53: =maj!H53 -> 400 | F53: =F55+F57 -> 0 | G53: =G54+G55 -> 0 | H53: 400
B54: 75412 | D54: Ochotnicze straże pożarne | E54: =maj!H54 -> 0 | F54: =F55 -> 0 | G54: =G55+G56 -> 0 | H54: 0
C55: 2710 | D55: Dotacja celowa na pomoc finansową udzielaną między jednostkami samorządu terytorialnego na dofinansowanie własnych zadań bieżących | E55: =maj!H55 -> 0 | H55: 0
C56: 6300 | D56: Wpływy z tytułu pomocy finansowej udzielanej miedzy JST na dofinansowanie własnych zadań inwestycyjnych i zakupów inwestycyjnych | E56: =maj!H56 -> 0 | H56: 0
B57: 75414 | D57: Obrona cywilna | E57: =maj!H57 -> 400 | F57: =SUM(F58) -> 0 | G57: =SUM(G58) -> 0 | H57: 400
C58: 2010 | D58: Dotacje celowe otrzymane z budżetu państwa na realizację zadań bieżących z zakresu administracji rządowej oraz innych zadań zleconych gminie(związkom gmin) ustawami | E58: =maj!H58 -> 400 | H58: 400
A59: 756 | D59: Dochody od osób prawnych, od osób fizycznych i od in nych jrednostek nieposiadających osobowości prawnej oraz wydatki związane z ich poborem | E59: =maj!H59 -> 2799568 | F59: =F60+F62+F68+F77+F84 -> 0 | G59: =G60+G62+G68+G77+G84 -> 0 | H59: 2799568
B60: 75601 | D60: Wpływy z podatku dochodowego od osób fizycznych | E60: =maj!H60 -> 1500 | F60: =SUM(F61) -> 0 | G60: =SUM(G61) -> 0 | H60: 1500
C61: 0350 | D61: Podatek od działalnosci gospodarczej osób fizycznych opłacany w formie karty podatkowej | E61: =maj!H61 -> 1500 | H61: 1500
B62: 75615 | D62: Wpływy z podatku rolnego, podatku leśnego,podatku od czynności cywilnoprawnych, podatku od spadków i darowizn oraz podatków i opłat lokalnych od osób prawnych i innych jenostek organizacyjnych | E62: =maj!H62 -> 506482 | F62: =SUM(F63:F67) -> 0 | G62: =SUM(G63:G67) -> 0 | H62: 506482
C63: 0310 | D63: Podatek od nieruchomości | E63: =maj!H63 -> 492000 | H63: 492000
C64: 0320 | D64: Podatek rolny | E64: =maj!H64 -> 770 | H64: 770
C65: 0330 | D65: Podatek leśny | E65: =maj!H65 -> 10365 | H65: 10365
C66: 0340 | D66: Podatek od środków transportowych | E66: =maj!H66 -> 2347 | H66: 2347
C67: 0910 | D67: Odsetki od nieterminowych wpłat z tytułu podatków i opłat | E67: =maj!H67 -> 1000 | H67: 1000
B68: 75616 | D68: Wpływy z podatku rolnego, podatku leśnego, podatku od spadków i darowizn, podatku od czynności cywilnoprawnych oraz podatków i opłat lokalnych od osób fizycznych | E68: =maj!H68 -> 1036900 | F68: =SUM(F69:F76) -> 0 | G68: =SUM(G69:G76) -> 0 | H68: 1036900
C69: 0310 | D69: Podatek od nieruchomości | E69: =maj!H69 -> 204500 | H69: 204500
C70: 0320 | D70: Podatek rolny | E70: =maj!H70 -> 604000 | H70: 604000
C71: 0330 | D71: Podatek leśny | E71: =maj!H71 -> 74000 | H71: 74000
C72: 0340 | D72: Podatek od środków transportowych | E72: =maj!H72 -> 74400 | H72: 74400
C73: 0360 | D73: Podatek od spadków i darowizn | E73: =maj!H73 -> 10000 | H73: 10000
C74: 0430 | D74: Wpływy z opłaty targowej | E74: =maj!H74 -> 6500 | H74: 6500
C75: 0500 | D75: Podatek od czynności cywilnoprawnych | E75: =maj!H75 -> 53500 | H75: 53500
C76: 0910 | D76: Odsetki od nieterminowych wpłat z tytułu podatków i opłat | E76: =maj!H76 -> 10000 | H76: 10000
B77: 75618 | D77: Wpływy z innych opłat stanowiących dochody jednostek samorządu terytorialnego na podstawie ustaw | E77: =maj!H77 -> 65000 | F77: =SUM(F78:F83) -> 0 | G77: =SUM(G78:G83) -> 0 | H77: 65000
C78: 0400 | D78: Wpływy z opłaty produktowej | E78: =maj!H78 -> 500 | H78: 500
C79: 0410 | D79: Wpływy z opłaty skarbowej | E79: =maj!H79 -> 27000 | H79: 27000
C80: 0460 | D80: Wpływy z opłaty eksploatacyjnej | E80: =maj!H80 -> 4000 | H80: 4000
C81: 0480 | D81: Wpływy z opłat zawydawanie zezwoleń na sprzedaż alkoholu | E81: =maj!H81 -> 30500 | H81: 30500
C82: 0490 | D82: Wpływy z innych lokalnych opłat pobieranych przez jednostki samorządu terytorialnego na podstawie odrębnych ustaw | E82: =maj!H82 -> 3000 | H82: 3000
C83: 0910 | D83: Odsetki od nieterminowych wpłat z tytułu podatków i opłat | E83: =maj!H83 -> 0 | H83: 0
B84: 75621 | D84: Udziały gmin w podatkach stanowiących dochód budżetu państwa | E84: =maj!H84 -> 1189686 | F84: =SUM(F85:F86) -> 0 | G84: =SUM(G85:G86) -> 0 | H84: 1189686
C85: 0010 | D85: Podatek dochodowy od osób fizycznych | E85: =maj!H85 -> 1183186 | H85: 1183186
C86: 0020 | D86: Podatek dochodowy od osób prawnych | E86: =maj!H86 -> 6500 | H86: 6500
A87: 758 | D87: Różne rozliczenia | E87: =maj!H87 -> 7685739 | F87: =F88+F90+F92+F94 -> 0 | G87: =G88+G90+G92+G94 -> 0 | H87: 7685739
B88: 75801 | D88: Część oświatowa subwencji ogólnej dla jednostek samorządu terytorialnego | E88: =maj!H88 -> 4401446 | F88: =SUM(F89) -> 0 | G88: =SUM(G89) -> 0 | H88: 4401446
C89: 2920 | D89: Subwencje ogólne z budźetu państwa | E89: =maj!H89 -> 4401446 | H89: 4401446
B90: 75807 | D90: Część wyrównawcza subwencji ogólnej dla gmin | E90: =maj!H90 -> 3235728 | F90: =SUM(F91) -> 0 | G90: =SUM(G91) -> 0 | H90: 3235728
C91: 2920 | D91: Subwencje ogólne z budżetu państwa | E91: =maj!H91 -> 3235728 | H91: 3235728
B92: 75814 | D92: Różne rozliczenia finansowe | E92: =maj!H92 -> 10000 | F92: =SUM(F93) -> 0 | G92: =SUM(G93) -> 0 | H92: 10000
C93: 0920 | D93: Pozostałe odsetki | E93: =maj!H93 -> 10000 | H93: 10000
B94: 75831 | D94: Część równoważąca subwencje ogólne dla gmin | E94: =maj!H94 -> 38565 | F94: =SUM(F95) -> 0 | G94: =SUM(G95) -> 0 | H94: 38565
C95: 2920 | D95: Subwencje ogólne z budżetu państwa | E95: =maj!H95 -> 38565 | H95: 38565
A96: 801 | D96: Oświata i wychowanie | E96: =maj!H96 -> 38600 | F96: =F97+F100+F102 -> 0 | G96: =G97+G100+G102 -> 0 | H96: 38600
B97: 80101 | D97: Szkoły podstawowe | E97: =maj!H97 -> 1000 | F97: =SUM(F98:F99) -> 0 | G97: =SUM(G98:G99) -> 0 | H97: =E97-F97+G97 -> 1000
C98: 2030 | D98: Dotacje celowe otrzymane z budżetu państwa na realizację własnych zadań bieżących gmin (związków gmin) | E98: =maj!H98 -> 0 | H98: 0
C99: 0920 | D99: Pozostałe odsetki | E99: =maj!H99 -> 1000 | H99: 1000
B100: 80104 | D100: Przedszkola | E100: =maj!H100 -> 37600 | F100: =SUM(F101) -> 0 | G100: =SUM(G101) -> 0 | H100: 37600
C101: 0830 | D101: Wpływy z usług | E101: =maj!H101 -> 37600 | H101: 37600
B102: 80195 | D102: Pozotała działalność | E102: =maj!H102 -> 0 | F102: =SUM(F103) -> 0 | G102: =SUM(G103) -> 0 | H102: 0
C103: 2030 | D103: Dotacje celowe otrzymane z budżetu państwa na realizację własnych zadań bieżących gmin (związków gmin) | E103: =maj!H103 -> 0 | H103: 0
A104: 852 | D104: Pomoc społeczna | E104: =maj!H104 -> 2248215 | F104: =F105+F108+F110+F113+F117+F119 -> 0 | G104: =G105+G108+G110+G113+G117+G119 -> 0 | H104: 2248215
B105: 85212 | D105: Świadczenia rodzinne, zaliczka alimentacyjn a oraz składki na ubezpieczenia emerytalne i rentowe z ubezpieczenia społecznego | E105: =maj!H105 -> 1740000 | F105: =SUM(F106:F107) -> 0 | G105: =SUM(G106:G107) -> 0 | H105: 1740000
C106: 6310 | D106: Dotacje celowe otrzymane z budżetu państwa na inwestycje i zakupy inwestycyjne z zakresu administracji rządowej oraz innych zadań zleconych gminom ustawami | E106: =maj!H106 -> 5000 | H106: 5000
C107: 2010 | D107: Dotacje celowe otrzymane z budżetu państwa na realizację zadań bieżących z zakresu administracji rządowej oraz innych zadań zleconych gminie(związkom gmin) ustawami | E107: =maj!H107 -> 1740000 | H107: 1740000
B108: 85213 | D108: Składki na ubezpieczenie zdrowotne opłacane za osoby pobierajace niektóre swiadczenia z pomocy społecznej oraz niektóre świadczenia rodzinne | E108: =maj!H108 -> 7100 | F108: =SUM(F109) -> 0 | G108: =SUM(G109) -> 0 | H108: 7100
C109: 2010 | D109: Dotacje celowe otrzymane z budżetu państwa na realizację zadań bieżących z zakresu administracji rządowej oraz innych zadań zleconych gminie(związkom gmin) ustawami | E109: =maj!H109 -> 7100 | H109: 7100
B110: 85214 | D110: Zasiłki i pomoc w naturze oraz składki na ubezpieczenia emerytalne i rentowe | E110: =maj!H110 -> 134700 | F110: =SUM(F111:F112) -> 0 | G110: =SUM(G111:G112) -> 0 | H110: 134700
C111: 2010 | D111: Dotacje celowe otrzymane z budżetu państwa na realizację zadań bieżących z zakresu administracji rządowej oraz innych zadań zleconych gminie(związkom gmin) ustawami | E111: =maj!H111 -> 85000 | H111: 85000
C112: 2030 | D112: Dotacje celowe otrzymane z budżetu państwa na realizację własnych zadań bieżących gmin (związków gmin) | E112: =maj!H112 -> 49700 | H112: 49700
B113: 85219 | D113: Ośrodki pomocy społecznej | E113: =maj!H113 -> 110600 | F113: =SUM(F114:F116) -> 0 | G113: =SUM(G114:G116) -> 0 | H113: 110600
C114: 2030 | D114: Dotacje celowe otrzymane z budżetu państwa na realizację własnych zadań bieżących gmin (związków gmin) | E114: =maj!H114 -> 108100 | H114: 108100
C115: 0830 | D115: Wpływy z usług | E115: =maj!H115 -> 1500 | H115: 1500
C116: 0920 | D116: Pozostale odsetki | E116: =maj!H116 -> 1000 | H116: 1000
B117: 85228 | D117: Usługi opiekuńcze i specjalistyczne usługi opiekuńcze | E117: =maj!H117 -> 18750 | F117: =SUM(F118) -> 0 | G117: =SUM(G118) -> 0 | H117: 18750
C118: 2010 | D118: Dotacje celowe otrzymane z budżetu państwa na realizację zadań bieżących z zakresu administracji rządowej oraz innych zadań zleconych gminie(związkom gmin) ustawami | E118: =maj!H118 -> 18750 | H118: 18750
B119: 85295 | D119: Pozostała działałność | E119: =maj!H119 -> 237065 | F119: =SUM(F120) -> 0 | G119: =SUM(G120:G121) -> 0 | H119: 237065
C120: 2030 | D120: Dotacje celowe otrzymane z budżetu państwa na realizację własnych zadań bieżących gmin (związków gmin) | E120: =maj!H120 -> 60000 | H120: 60000
C121: 2023 | D121: Dotacje celowe otrzymane z budżetu państwa na zdania bieżące realizowane przez gminę na podstawie porozumień z organami administracji rządowej | E121: =maj!H121 -> 177065 | H121: 177065
A122: 854 | D122: Edukacyjna opieka wychowawcza | E122: =maj!H122 -> 65304 | F122: =SUM(F123) -> 0 | G122: =SUM(G123) -> 0 | H122: 65304
B123: 85415 | D123: Pomoc materialna dla uczniów | E123: =maj!H123 -> 65304 | F123: =SUM(F124) -> 0 | G123: =SUM(G124) -> 0 | H123: 65304
C124: 2030 | D124: Dotacje celowe otrzymane z budżetu państwa na realizację własnych zadań bieżących gmin (związków gmin) | E124: =maj!H124 -> 65304 | H124: 65304
A125: 900 | D125: Gospodarka komunalna i ochrona środowiska | E125: =maj!H125 -> 0 | F125: =F126 -> 0 | G125: =G126 -> 8000 | H125: 8000
B126: 90095 | D126: Pozostała działalność | E126: =maj!H126 -> 0 | F126: =SUM(F127) -> 0 | G126: =SUM(G127) -> 8000 | H126: 8000
C127: 2440 | D127: Dotacje przekazane z funduszy celowych na realizację zadań bieżących dla jedostek sektora finansów publicznych | E127: =maj!H127 -> 0 | G127: 8000 | H127: 8000
A129: Dochody ogółem | E129: =maj!H129 -> 13668306 | F129: =F13+F20+F27+F40+F48+F53+F59+F87+F96+F104+F37 -> 0 | G129: =G13+G20+G27+G40+G48+G53+G59+G87+G96+G104+G37+G122+G125 -> 312433 | H129: 13980739
